Workbook

Sheet Calculator
A1: Select your school from the drop down list: | B1: Please select from the list | J1: =IF(B1="Please select from the list","",VLOOKUP(B1,Dates_Pmts_Info!$P$4:$Q$17,2,FALSE)) -> 
A3: =CONCATENATE("Universal Infant Free School Meals (UIFSM) - estimate calculator for academic year ",Dates_Pmts_Info!A2," to ",Dates_Pmts_Info!B2) -> Universal Infant Free School Meals (UIFSM) - estimate calculator for academic year 2025 to 2026
A4: This table shows how the UIFSM grant will be calculated and paid. LAs and schools can use this to estimate their allocation. The relevant pupil data can be entered in cells bordered in red. Any figure estimated should not be taken as confirmation of the final allocation. Please read the UIFSM Conditions of Grant when using this calculator.
A5: Pupil data | B5: (a) | C5: (b) | D5: (c) | E5: (d) | F5: (e) | G5: (f) | H5: (g)
A6: School Census | B6: Meals taken by ALL pupils in Year Groups 1 and 2 | C6: Meals taken by FSM pupils in Year Groups 1 and 2 | D6: Meals taken by grant eligible pupils in Year Groups1 and 2 (a) - (b) | E6: Meals taken by ALL pupils in Year Group R | F6: Meals taken by FSM pupils in Year Group R | G6: Meals taken by grant eligible pupils in Year Group R (d) - (e) | H6: Total pupils on roll (all pupils, including nursery)
A7: =CONCATENATE("October ",Dates_Pmts_Info!A2) -> October 2025 | D7: =B7-C7 -> 0 | G7: =E7-F7 -> 0 | H7: n/a
A8: =CONCATENATE("January ",Dates_Pmts_Info!B2) -> January 2026 | D8: =B8-C8 -> 0 | G8: =E8-F8 -> 0 | H8: n/a
A10: =CONCATENATE("Provisional Allocation (the same as the final allocation for ",Dates_Pmts_Info!D2," to ",Dates_Pmts_Info!E2," academic year).") -> Provisional Allocation (the same as the final allocation for 2024 to 2025 academic year).
A11: (i) Average of October 2014 and January 2015 take up of meals in Years 1 and 2 | B11: 0 | C11: (October 2014 Year 1 and 2 pupils in (c) + January 2015 Year 1 and 2 pupils in (c))/2 x the meal rate of £2.30 x 190 meal days)
A12: (ii) Average of October 2014 and January 2015 take up of meals in Year R only | B12: 0 | C12: (October 2014 Year R pupils in (f)+ January 2015 Year R pupils in (f))/2 x the meal rate of £2.30 x 190 meal days)
A13: (iii) January 2015 take up of meals in Year R only | B13: 0 | C13: (January 2015 pupils in (f) x the meal rate of £2.30 x 190 meal days
A14: =CONCATENATE("Provisional allocation (final allocation ",Dates_Pmts_Info!F2,")") -> Provisional allocation (final allocation 2024-25) | B14: =IF(J1="", "",VLOOKUP(J1,'Final Allocations 2024-25'!H4:K17,4,FALSE)) ->  | C14: =CONCATENATE("See tab Final Allocations ",Dates_Pmts_Info!F2," for figure to enter here") -> See tab Final Allocations 2024-25 for figure to enter here
A16: Final allocation
A17: =CONCATENATE("(i) Average of October ",Dates_Pmts_Info!A2," and January ",Dates_Pmts_Info!B2," take up of meals in Years 1 and 2") -> (i) Average of October 2025 and January 2026 take up of meals in Years 1 and 2 | B17: =SUM((D7+D8)/2)*190*2.58 -> 0 | C17: =CONCATENATE("October ",Dates_Pmts_Info!A2," Year 1 and 2 pupils in (c) + January ",Dates_Pmts_Info!B2," Year 1 and 2 pupils in (c))/2 x the meal rate of £",Dates_Pmts_Info!H2," x 190 meal days)") -> October 2025 Year 1 and 2 pupils in (c) + January 2026 Year 1 and 2 pupils in (c))/2 x the meal rate of £2.61 x 190 meal days)
A18: =CONCATENATE("(ii) Average of October ",Dates_Pmts_Info!A2," and January ",Dates_Pmts_Info!B2," take up of meals in Year R only") -> (ii) Average of October 2025 and January 2026 take up of meals in Year R only | B18: =SUM((G7+G8)/2)*190*2.58 -> 0 | C18: =CONCATENATE("October ",Dates_Pmts_Info!A2," Year R pupils in (f)+ January ",Dates_Pmts_Info!B2," Year R pupils in (f))/2 x the meal rate of £", Dates_Pmts_Info!H2," x 190 meal days)") -> October 2025 Year R pupils in (f)+ January 2026 Year R pupils in (f))/2 x the meal rate of £2.61 x 190 meal days)
A19: =CONCATENATE("(iii) January ",Dates_Pmts_Info!B2," take up of meals in Year R only") -> (iii) January 2026 take up of meals in Year R only | B19: =G8*190*2.58 -> 0 | C19: =CONCATENATE("January ",Dates_Pmts_Info!B2," pupils in (f) x the meal rate of £",Dates_Pmts_Info!H2," x 190 meal days)") -> January 2026 pupils in (f) x the meal rate of £2.61 x 190 meal days)
A20: Final allocation = (i) plus the greater of (ii) or (iii) | B20: =IF(B19>B18, B19, B18)+B17 -> 0
A22: =CONCATENATE("June/July ",Dates_Pmts_Info!A2," payment") -> June/July 2025 payment
A23: =CONCATENATE("Provisional allocation x 7/12 and adjusted for increase in rate from £",Dates_Pmts_Info!G2," to £",Dates_Pmts_Info!H2, ) -> Provisional allocation x 7/12 and adjusted for increase in rate from £2.58 to £2.61 | B23: =IF(B14="","",B14*7/12/Dates_Pmts_Info!G2*Dates_Pmts_Info!H2) -> 
A25: Total payment | B25: =SUM(B23:B24) -> 0
A27: =CONCATENATE("June/July ",Dates_Pmts_Info!B2," payment") -> June/July 2026 payment
A28: Final main allocation | B28: =B20 -> 0
A29: =CONCATENATE("Already paid in June/July ",Dates_Pmts_Info!A2) -> Already paid in June/July 2025 | B29: =B25*-1 -> 0
A30: =CONCATENATE("Total payment/adjustment for June/July ",Dates_Pmts_Info!B2) -> Total payment/adjustment for June/July 2026 | B30: =SUM(B28:B29) -> 0 | C30: If negative, the amount will be deducted from a future payment.
A31: Accrual amount required | B31: =IF(B14="","",(B20-B14)*(7/12)) -> 

Sheet Final Allocations 2024-25
A1: School Details
A3: Unique Reference Number (URN) | B3: UK Provider Reference Number (UKPRN) | C3: Local Authority Establishment Number (LAEstab) | D3: Local Authority Code | E3: Local Authority Name | F3: Establishment Number | G3: School Name | H3: Cost Centre | I3: Provisional payment made in June / July 2024 (£) | J3: Final allocation for 2024/25 (£) | K3: Final payment for 2024/25 (Col J - Col K) (£) | L3: Meals taken by Reception pupils from October 2024 census | M3: Meals taken by Reception FSM pupils from October 2024 census | N3: Total Eligible Meals taken by Reception pupils from October 2024 census (Col M - Col N) | O3: Meals taken by Year 1 and Year 2 pupils from October 2024 census | P3: Meals taken by Year 1 and Year 2 FSM pupils from October 2024 census | Q3: Total Eligible Meals taken by Year 1 and Year 2 pupils from October 2024 census (Col P - Col Q) | R3: Meals taken by Reception pupils from January 2025 census | S3: Meals taken by Reception FSM pupils from January 2025 census | T3: Total Eligible Meals taken by Reception pupils from January 2025 census (Col S - Col T) | U3: Meals taken by Year 1 and Year 2 pupils from January 2025 census | V3: Meals taken by Year 1 and Year 2 FSM pupils from January 2025 census | W3: Total Eligible Meals taken by Year 1 and Year 2 pupils from January 2025 census (Col V - Col W) | X3: Total Eligible Meals taken by Reception pupils used in 2023-24 final allocation calculation | Y3: Total Eligible Meals taken by Year 1 and Year 2 pupils used in 2023-24 final allocation calculation | Z3: Total Eligible Meals taken by Infant pupils used in 2023-24 final allocation calculation (Col Y + Col Z)
A4: 109829 | B4: 10077315 | C4: 8722088 | D4: 872 | E4: Wokingham | F4: 2088 | G4: Farley Hill Primary School | H4: =VLOOKUP(G4,Dates_Pmts_Info!$P$4:$Q$17,2,FALSE) -> 41111 | I4: 38697 | J4: 75246 | K4: 36549 | L4: 60 | M4: 4 | N4: 56 | O4: 112 | P4: 11 | Q4: 101 | R4: 52 | S4: 5 | T4: 47 | U4: 113 | V4: 10 | W4: 103 | X4: 51.5 | Y4: 102 | Z4: 153.5
A5: 109830 | B5: 10042648 | C5: 8722089 | D5: 872 | E5: Wokingham | F5: 2089 | G5: Lambs Lane Primary School | H5: =VLOOKUP(G5,Dates_Pmts_Info!$P$4:$Q$17,2,FALSE) -> 41122 | I5: 15984 | J5: 34314 | K5: 18330 | L5: 27 | M5: 1 | N5: 26 | O5: 55 | P5: 10 | Q5: 45 | R5: 26 | S5: 1 | T5: 25 | U5: 53 | V5: 9 | W5: 44 | X5: 25.5 | Y5: 44.5 | Z5: 70
A6: 109836 | B6: 10068906 | C6: 8722100 | D6: 872 | E6: Wokingham | F6: 2100 | G6: Bearwood Primary School | H6: =VLOOKUP(G6,Dates_Pmts_Info!$P$4:$Q$17,2,FALSE) -> 41103 | I6: 19489 | J6: 27452 | K6: 7963 | L6: 17 | M6: 2 | N6: 15 | O6: 48 | P6: 7 | Q6: 41 | R6: 14 | S6: 1 | T6: 13 | U6: 49 | V6: 6 | W6: 43 | X6: 14 | Y6: 42 | Z6: 56
A7: 109850 | B7: 10074557 | C7: 8722116 | D7: 872 | E7: Wokingham | F7: 2116 | G7: Aldryngton Primary School | H7: =VLOOKUP(G7,Dates_Pmts_Info!$P$4:$Q$17,2,FALSE) -> 41101 | I7: 32528 | J7: 52697 | K7: 20169 | L7: 40 | M7: 0 | N7: 40 | O7: 70 | P7: 3 | Q7: 67 | R7: 40 | S7: 0 | T7: 40 | U7: 71 | V7: 3 | W7: 68 | X7: 40 | Y7: 67.5 | Z7: 107.5
A8: 109869 | B8: 10069743 | C8: 8722137 | D8: 872 | E8: Wokingham | F8: 2137 | G8: Walter Infant School | H8: =VLOOKUP(G8,Dates_Pmts_Info!$P$4:$Q$17,2,FALSE) -> 41144 | I8: 65196 | J8: 99511 | K8: 34315 | L8: 58 | M8: 5 | N8: 53 | O8: 164 | P8: 15 | Q8: 149 | R8: 59 | S8: 5 | T8: 54 | U8: 167 | V8: 18 | W8: 149 | X8: 54 | Y8: 149 | Z8: 203
A9: 109876 | B9: 10068958 | C9: 8722146 | D9: 872 | E9: Wokingham | F9: 2146 | G9: Winnersh Primary School | H9: =VLOOKUP(G9,Dates_Pmts_Info!$P$4:$Q$17,2,FALSE) -> 41151 | I9: 40099 | J9: 56128 | K9: 16029 | L9: 32 | M9: 3 | N9: 29 | O9: 91 | P9: 6 | Q9: 85 | R9: 33 | S9: 2 | T9: 31 | U9: 89 | V9: 7 | W9: 82 | X9: 31 | Y9: 83.5 | Z9: 114.5
A10: 109878 | B10: 10068957 | C10: 8722149 | D10: 872 | E10: Wokingham | F10: 2149 | G10: The Colleton Primary School | H10: =VLOOKUP(G10,Dates_Pmts_Info!$P$4:$Q$17,2,FALSE) -> 41105 | I10: 19770 | J10: 37501 | K10: 17731 | L10: 22 | M10: 0 | N10: 22 | O10: 54 | P10: 3 | Q10: 51 | R10: 24 | S10: 0 | T10: 24 | U10: 57 | V10: 3 | W10: 54 | X10: 24 | Y10: 52.5 | Z10: 76.5
A11: 109924 | B11: 10069738 | C11: 8722232 | D11: 872 | E11: Wokingham | F11: 2232 | G11: Gorse Ride Infants' School | H11: =VLOOKUP(G11,Dates_Pmts_Info!$P$4:$Q$17,2,FALSE) -> 41113 | I11: 18367 | J11: 28187 | K11: 9820 | L11: 16 | M11: 0 | N11: 16 | O11: 47 | P11: 9 | Q11: 38 | R11: 18 | S11: 1 | T11: 17 | U11: 54 | V11: 11 | W11: 43 | X11: 17 | Y11: 40.5 | Z11: 57.5
A12: 109927 | B12: 10068950 | C12: 8722235 | D12: 872 | E12: Wokingham | F12: 2235 | G12: Radstock Primary School | H12: =VLOOKUP(G12,Dates_Pmts_Info!$P$4:$Q$17,2,FALSE) -> 41131 | I12: 29724 | J12: 40932 | K12: 11208 | L12: 26 | M12: 0 | N12: 26 | O12: 75 | P12: 1 | Q12: 74 | R12: 17 | S12: 2 | T12: 15 | U12: 56 | V12: 4 | W12: 52 | X12: 20.5 | Y12: 63 | Z12: 83.5
A13: 109988 | B13: 10078917 | C13: 8723056 | D13: 872 | E13: Wokingham | F13: 3056 | G13: Woodley CofE Primary School | H13: =VLOOKUP(G13,Dates_Pmts_Info!$P$4:$Q$17,2,FALSE) -> 41152 | I13: 28742 | J13: 49511 | K13: 20769 | L13: 38 | M13: 3 | N13: 35 | O13: 75 | P13: 7 | Q13: 68 | R13: 37 | S13: 3 | T13: 34 | U13: 71 | V13: 6 | W13: 65 | X13: 34.5 | Y13: 66.5 | Z13: 101
A14: 109989 | B14: 10078334 | C14: 8723057 | D14: 872 | E14: Wokingham | F14: 3057 | G14: Robert Piggott CofE Infant School | H14: =VLOOKUP(G14,Dates_Pmts_Info!$P$4:$Q$17,2,FALSE) -> 41133 | I14: 27341 | J14: 50246 | K14: 22905 | L14: 38 | M14: 0 | N14: 38 | O14: 71 | P14: 7 | Q14: 64 | R14: 38 | S14: 0 | T14: 38 | U14: 74 | V14: 9 | W14: 65 | X14: 38 | Y14: 64.5 | Z14: 102.5
A15: 110012 | B15: 10075732 | C15: 8723315 | D15: 872 | E15: Wokingham | F15: 3315 | G15: Finchampstead CofE VA Primary School | H15: =VLOOKUP(G15,Dates_Pmts_Info!$P$4:$Q$17,2,FALSE) -> 41112 | I15: 10516 | J15: 17648 | K15: 7132 | L15: 12 | M15: 0 | N15: 12 | O15: 24 | P15: 0 | Q15: 24 | R15: 12 | S15: 0 | T15: 12 | U15: 24 | V15: 0 | W15: 24 | X15: 12 | Y15: 24 | Z15: 36
A16: 110041 | B16: 10070227 | C16: 8723368 | D16: 872 | E16: Wokingham | F16: 3368 | G16: St Dominic Savio Catholic Primary School | H16: =VLOOKUP(G16,Dates_Pmts_Info!$P$4:$Q$17,2,FALSE) -> 41139 | I16: 46128 | J16: 81129 | K16: 35001 | L16: 55 | M16: 2 | N16: 53 | O16: 114 | P16: 2 | Q16: 112 | R16: 58 | S16: 2 | T16: 56 | U16: 108 | V16: 1 | W16: 107 | X16: 56 | Y16: 109.5 | Z16: 165.5
A17: 131192 | B17: 10075262 | C17: 8723371 | D17: 872 | E17: Wokingham | F17: 3371 | G17: Loddon Primary School | H17: =VLOOKUP(G17,Dates_Pmts_Info!$P$4:$Q$17,2,FALSE) -> 41153 | I17: 24256 | J17: 47060 | K17: 22804 | L17: 29 | M17: 2 | N17: 27 | O17: 64 | P17: 4 | Q17: 60 | R17: 30 | S17: 3 | T17: 27 | U17: 83 | V17: 5 | W17: 78 | X17: 27 | Y17: 69 | Z17: 96

Sheet SC (hidden)
A1: Sundry CREDITOR Accounts Payable - Schools Only
A4: Schools | L4: =CONCATENATE("Closedown ",Dates_Pmts_Info!C2) -> Closedown 2025-26
A6: School Name: | D6: =Calculator!B1 -> Please select from the list
A8: NB Grey cells will automatically complete | H8: Amount | J8: Required for Audit purposes only.
H9: Excluding VAT | I9: This data will appear on BWO. | J9: (this data will not appear on BWO)
A10: Account Code | B10: Cost Centre | C10: Project code | D10: Category 4 | E10: Category 5 | F10: Analysis | G10: +/- | H10: £ | I10: Name of Supplier and Invoice Number | J10: Date Goods /Services Received | L10: Description
A11: BZ549 | B11: 90000 | C11: 99999 | D11: 99999-112 | E11: REV01 | F11: Z9017 | G11: - | H11: =-SUM(H12:H25) ->  | I11: =CONCATENATE("Sundry Creditor for " &D6) -> Sundry Creditor for Please select from the list
A12: R9007 | B12: =Calculator!J1 ->  | C12: 99999 | D12: 99999-999 | G12: + | H12: =Calculator!B31*-1 ->  | I12: =CONCATENATE("UIFSM Grant Accrual ",Dates_Pmts_Info!C2) -> UIFSM Grant Accrual 2025-26 | J12: =Dates_Pmts_Info!J2 -> 2026-03-31 | L12: UIFSM Grant allocation adjustment
G13: +
G14: +
G15: +
G16: +
G17: +
G18: +
G19: +
G20: +
G21: +
G22: +
G23: +
G24: +
G25: +
H26: =SUM(H11:H12) -> 
A27: =CONCATENATE("PLEASE RETAIN A SIGNED COPY FOR SCHOOL RECORDS AND EMAIL THIS SPREADSHEET TO SCHOOLSFINANCEHELPDESK@WOKINGHAM.GOV.UK BY MIDDAY ON ",Dates_Pmts_Info!I2,".") -> PLEASE RETAIN A SIGNED COPY FOR SCHOOL RECORDS AND EMAIL THIS SPREADSHEET TO SCHOOLSFINANCEHELPDESK@WOKINGHAM.GOV.UK BY MIDDAY ON FRIDAY, 20TH MARCH 2026.
A29: =CONCATENATE("IMPORTANT: I confirm that the above transactions have been recorded in my ",Dates_Pmts_Info!C2," BWO report, and that they relate to goods or services that will be provided to the school on or after ",Dates_Pmts_Info!K2,".") -> IMPORTANT: I confirm that the above transactions have been recorded in my 2025-26 BWO report, and that they relate to goods or services that will be provided to the school on or after 1st April 2026.
A32: Authorised by the Head teacher

Sheet Config (hidden)
A1: Settings | B1: Value
A2: Provider | B2: SQLOLEDB
A3: Data Source | B3: WDC-SQLTEST01\AGRESSOTEST
A4: Database | B4: Agresso
A5: User Id | B5: wbcfin
A6: Password | B6: !0553rgA
A7: Show Errors and Warnings | B7: N
A8: Show Connection String Only | B8: N
A9: Show Errors and Account Warnings Start Column | B9: 27
A10: Start Row of Journal | B10: 47
A11: End Row of Journal | B11: 2999
A12: Client | B12: WBC
A13: Show Errors and Categegoroy Warnings Start Column | B13: 70

Sheet SC Control Sheet (hidden)
D2: BWO - Accrual Control Sheet
D5: Accrual Details
D6: Description | E6: =SC!I12 -> UIFSM Grant Accrual 2025-26
D7: Accrual Period | E7: =Dates_Pmts_Info!L2 -> 202512
D8: Reversing Period | E8: =Dates_Pmts_Info!M2 -> 202601
D9: Accrual Type | E9: Sundry Creditors (BZ549)
D10: Balance Sheet Cost Centre | E10: Corporate Balance Sheet (90000)
D11: Service | E11: Children's Services - Schools Block (99999-112)
D12: Revenue/Capital | E12: Revenue (REV01)
D13: Analysis 2
D14: Analysis
D18: Category | E18: Select Posting Attribute
D19: ACCOUNT | E19: ACCOUNT
D20: CAT1 | E20: COSTC
D21: CAT2 | E21: PROJECT
D22: CAT3 | E22: RESNO
D23: CAT4 | E23: WORKORD
D24: CAT5 | E24: POSNO
D25: CAT6 | E25: EXTFUNDING
D26: CAT7 | E26: ANALYSIS

Sheet SC Accrual Detail (hidden)
A1: =D1&E1 -> setdefault account= | D1: setdefault account= | G1: ='SC Control Sheet'!E9 -> Sundry Creditors (BZ549) | H1: =IF(G1=0,"",VLOOKUP(G1,Tables!E:F,2,FALSE)) -> BZ549
A2: setdefault amount= | D2: setdefault amount= | G2: ='SC Control Sheet'!E10 -> Corporate Balance Sheet (90000) | H2: =IF(G2=0,"",VLOOKUP(G2,Tables!G:H,2,FALSE)) -> 90000
A3: setdefault client=WBC | D3: setdefault client= | E3: WBC | G3: ='SC Control Sheet'!E11 -> Children's Services - Schools Block (99999-112) | H3: =IF(G3=0,"",VLOOKUP(G3,Tables!I:J,2,FALSE)) -> 99999-112
A4: setdefault cur_amount= | D4: setdefault cur_amount= | G4: ='SC Control Sheet'!E12 -> Revenue (REV01) | H4: =IF(G4=0,"",VLOOKUP(G4,Tables!K:L,2,FALSE)) -> REV01
A5: setdefault currency=GBP | D5: setdefault currency= | E5: GBP | G5: ='SC Control Sheet'!E13 -> 0 | H5: =IF(G5=0,"",VLOOKUP(G5,Tables!M:N,2,FALSE)) -> 
A6: setdefault description= | D6: setdefault description= | G6: ='SC Control Sheet'!E14 -> 0 | H6: =IF(G6=0,"",VLOOKUP(G6,Tables!O:P,2,FALSE)) -> 
A7: setdefault variant_number=99 | D7: setdefault variant_number= | E7: 99 | G7: ='SC Control Sheet'!E7 -> 2454-06-15 | H7: ='SC Control Sheet'!$E$7 -> 202512
A8: setdefault dim_1=C1 | D8: setdefault dim_1= | E8: =VLOOKUP('SC Control Sheet'!E20,Tables!S:T,2,FALSE) -> C1 | G8: ='SC Control Sheet'!E8 -> 2454-09-12 | H8: ='SC Control Sheet'!$E$8 -> 202601
A9: setdefault dim_2=B0 | D9: setdefault dim_2= | E9: =VLOOKUP('SC Control Sheet'!E21,Tables!S:T,2,FALSE) -> B0
A10: setdefault dim_3=C0 | D10: setdefault dim_3= | E10: =VLOOKUP('SC Control Sheet'!E22,Tables!S:T,2,FALSE) -> C0
A11: setdefault dim_4=BF | D11: setdefault dim_4= | E11: =VLOOKUP('SC Control Sheet'!E23,Tables!S:T,2,FALSE) -> BF
A12: setdefault dim_5=CG | D12: setdefault dim_5= | E12: =VLOOKUP('SC Control Sheet'!E24,Tables!S:T,2,FALSE) -> CG
A13: setdefault dim_6=62 | D13: setdefault dim_6= | E13: =VLOOKUP('SC Control Sheet'!E25,Tables!S:T,2,FALSE) -> 62
A14: setdefault dim_7=70 | D14: setdefault dim_7= | E14: =VLOOKUP('SC Control Sheet'!E26,Tables!S:T,2,FALSE) -> 70
A15: setdefault apar_name=UIFSM Grant Accrual 2025-26 | D15: setdefault apar_name= | E15: ='SC Control Sheet'!E6 -> UIFSM Grant Accrual 2025-26
A16: setdefault interface=GL | D16: setdefault interface= | E16: GL
A17: setdefault number_1=0 | D17: setdefault number_1= | E17: 0
A19: =D19&E19 -> setdefault sequence_no= | D19: setdefault sequence_no=
A20: setdefault status=N | D20: setdefault status= | E20: N
A21: setdefault trans_date=10/02/2026 | D21: setdefault trans_date= | E21: =TEXT(F21,"dd/mm/yyyy") -> 10/02/2026 | F21: =TODAY() -> 2026-02-10
A22: setdefault trans_type=GL | D22: setdefault trans_type= | E22: GL
A23: setdefault value_1=0 | D23: setdefault value_1= | E23: 0
A24: setdefault voucher_date=10/02/2026 | D24: setdefault voucher_date= | E24: =TEXT(F24,"dd/mm/yyyy") -> 10/02/2026 | F24: =TODAY() -> 2026-02-10
A25: setdefault voucher_no= | D25: setdefault voucher_no=
A26: setdefault voucher_type=G8 | D26: setdefault voucher_type= | E26: G8
A27: =D27&E27&F27 ->  | D27: setdefault batch_id= | E27: <user_id> | F27: =#REF!*10000 -> 
A29: update_columns GL07 | B29: sequence_no | D29: account | E29: dim_1 | F29: dim_2 | G29: dim_3 | H29: dim_4 | I29: dim_5 | J29: dim_6 | K29: dim_7 | L29: apar_id | M29: apar_type | N29: ext_inv_ref | O29: trans_type | P29: amount | Q29: cur_amount | U29: description | V29: period
D32: Accrual Template
D38: ='SC Control Sheet'!E6 -> UIFSM Grant Accrual 2025-26 | R38: =IF(ABS(SUM(Q42:Q544))<0.00001,"Status: OK","Status: Do Not Upload - Must be a Balanced Journal") ->  | W38: =COLUMN(W38) -> 23 | X38: =COLUMN(X38) -> 24 | Y38: 25 | Z38: 26 | AA38: 27 | AB38: 28 | AC38: 29 | AD38: 30 | AE38: 31 | AF38: 32 | AG38: 33 | AH38: 34 | AI38: 35 | AJ38: 36 | AK38: 37 | AL38: 38 | AM38: 39 | AN38: 40 | AO38: 41 | AP38: 42 | AQ38: 43 | AR38: 44 | AS38: 45 | AT38: 46 | AU38: 47 | AV38: 48 | AW38: 49 | AX38: 50 | AY38: 51 | AZ38: 52 | BA38: 53 | BN38: 66 | BO38: 67 | BP38: 68 | BQ38: 69 | BR38: 70 | BS38: 71 | BT38: 72 | BU38: 73
D41: ACCOUNT | E41: CAT1 | F41: CAT2 | G41: CAT3 | H41: CAT4 | I41: CAT5 | J41: CAT6 | K41: CAT7 | L41: APAR_id | M41: APAR Type | N41: Invoice number | O41: Trans Type | P41: AMOUNT | Q41: Cur Amt | R41: LINE DESCRIPTION | W41: Valid Acc | X41: AccRule | Y41: Rule Name | Z41: Cat1 | AA41: Name | AB41: Type | AC41: Value | AD41: Cat2 | AE41: Name | AF41: Type | AG41: Value | AH41: Cat3 | AI41: Name | AJ41: Type | AK41: Value | AL41: Cat4 | AM41: Name | AN41: Type | AO41: Value | AP41: Cat5 | AQ41: Name | AR41: Type | AS41: Value | AT41: Cat6 | AU41: Name | AV41: Type | AW41: Value | AX41: Cat7 | AY41: Name | AZ41: Type | BA41: Value | BN41: Cat_1 | BO41: Cat_2 | BP41: Cat_3 | BQ41: Cat_2(4) | BR41: Cat_5 | BS41: Cat_6 | BT41: Cat_7 | BU41: Cat_4 (W/O)
A42: =IF(TRIM(D42)="","","update_data,visible") -> update_data,visible | B42: 1 | D42: =H1 -> BZ549 | E42: =H2 -> 90000 | F42: =IF(LEN(H42)>5,LEFT(H42,5),"") -> 99999 | H42: =H3 -> 99999-112 | I42: =H4 -> REV01 | J42: =H5 ->  | K42: =H6 ->  | L42: 203619 | M42: P | N42: 1 | O42: =IF(TRIM(L42)="","","GL") -> GL | P42: =-SUM($P$50:$P$544) ->  | Q42: =IF(P42="","",ROUND(P42,2)) ->  | U42: ='SC Control Sheet'!$E$6&"#"&'SC Accrual Detail'!R42 -> UIFSM Grant Accrual 2025-26# | V42: =IF(D42="","",$H$7) -> 202512
A43: =IF(TRIM(D43)="","","update_data,visible") ->  | D43: =IF(TRIM(L43)="","",$D$42) ->  | E43: =IF(TRIM(D43)="","",E42) ->  | F43: =IF(LEN(H43)>5,LEFT(H43,5),"") ->  | H43: =IF(TRIM(D43)="","",H42) ->  | I43: =IF(TRIM(D43)="","",I42) ->  | M43: =IF(TRIM(D43)="","",M42) ->  | N43: =IF(TRIM(D43)="","",N42) ->  | O43: =IF(TRIM(D43)="","",O42) ->  | P43: =-+SUMIF($L$50:$L$544,L43,$P$50:$P$544) -> 0 | Q43: =IF(P43="","",ROUND(P43,2)) -> 0 | U43: ='SC Control Sheet'!$E$6&"#"&'SC Accrual Detail'!R43 -> UIFSM Grant Accrual 2025-26# | V43: =IF(D43="","",$H$7) -> 
D44: =IF(TRIM(L44)="","",$D$42) ->  | E44: =IF(TRIM(D44)="","",E42) ->  | H44: =IF(TRIM(D44)="","",H42) ->  | I44: =IF(TRIM(D44)="","",I42) ->  | M44: =IF(TRIM(D44)="","",M42) ->  | N44: =IF(TRIM(D44)="","",N42) ->  | O44: =IF(TRIM(D44)="","",O42) ->  | P44: 0 | Q44: 0 | U44: ='SC Control Sheet'!$E$6&"#"&'SC Accrual Detail'!R44 -> UIFSM Grant Accrual 2025-26# | V44: =IF(D44="","",$H$7) -> 
E45: =IF(TRIM(D45)="","",E42) ->  | H45: =IF(TRIM(D45)="","",H42) ->  | I45: =IF(TRIM(D45)="","",I42) ->  | M45: =IF(TRIM(D45)="","",M42) ->  | N45: =IF(TRIM(D45)="","",N42) ->  | O45: =IF(TRIM(D45)="","",O42) ->  | P45: 0 | Q45: 0 | U45: ='SC Control Sheet'!$E$6&"#"&'SC Accrual Detail'!R45 -> UIFSM Grant Accrual 2025-26# | V45: =IF(D45="","",$H$7) -> 
B46: =B42+1 -> 2
B47: =B46+1 -> 3
B48: 4
B49: 5 | D49: ACCOUNT | E49: CAT1 | F49: CAT2 | G49: CAT3 | H49: CAT4 | I49: CAT5 | J49: CAT6 | K49: CAT7 | L49: APAR_id | M49: APAR Type | N49: Invoice number | O49: Trans Type | P49: AMOUNT | Q49: Cur Amt | R49: LINE DESCRIPTION
A50: =IF(TRIM(D50)="","","update_data,visible") -> update_data,visible | B50: 6 | D50: =SC!A12 -> R9007 | E50: =SC!B12 ->  | F50: =LEFT(H50,5) -> 99999 | H50: =SC!D12 -> 99999-999 | J50: V1105 | L50: 203619 | M50: P | N50: 1 | O50: =IF(TRIM(L50)="","","GL") -> GL | P50: =SC!H12 ->  | Q50: =IF(P50="","",ROUND(P50,2)) ->  | R50: =SC!I12& " "&SC!L12 -> UIFSM Grant Accrual 2025-26 UIFSM Grant allocation adjustment | U50: ='SC Control Sheet'!$E$6&"#"&'SC Accrual Detail'!R50 -> UIFSM Grant Accrual 2025-26#UIFSM Grant Accrual 2025-26 UIFSM Grant allocation adjustment | V50: =IF(D50="","",$H$7) -> 202512
B51: 7 | F51: =LEFT(H51,5) ->  | M51: =IF(TRIM(L51)="","","P") ->  | O51: =IF(TRIM(L51)="","","GL") ->  | U51: ='SC Control Sheet'!$E$6&"#"&'SC Accrual Detail'!R51 -> UIFSM Grant Accrual 2025-26#
B52: 8 | M52: =IF(TRIM(L52)="","","P") ->  | O52: =IF(TRIM(L52)="","","GL") ->  | U52: ='SC Control Sheet'!$E$6&"#"&'SC Accrual Detail'!R52 -> UIFSM Grant Accrual 2025-26#
B53: 9 | U53: ='SC Control Sheet'!$E$6&"#"&'SC Accrual Detail'!R53 -> UIFSM Grant Accrual 2025-26#
B54: 10 | U54: ='SC Control Sheet'!$E$6&"#"&'SC Accrual Detail'!R54 -> UIFSM Grant Accrual 2025-26#
B55: 11 | U55: ='SC Control Sheet'!$E$6&"#"&'SC Accrual Detail'!R55 -> UIFSM Grant Accrual 2025-26#
B56: 12 | U56: ='SC Control Sheet'!$E$6&"#"&'SC Accrual Detail'!R56 -> UIFSM Grant Accrual 2025-26#
B57: 13 | U57: ='SC Control Sheet'!$E$6&"#"&'SC Accrual Detail'!R57 -> UIFSM Grant Accrual 2025-26#
B58: 14 | U58: ='SC Control Sheet'!$E$6&"#"&'SC Accrual Detail'!R58 -> UIFSM Grant Accrual 2025-26#
B59: 15 | U59: ='SC Control Sheet'!$E$6&"#"&'SC Accrual Detail'!R59 -> UIFSM Grant Accrual 2025-26#
B60: 16 | U60: ='SC Control Sheet'!$E$6&"#"&'SC Accrual Detail'!R60 -> UIFSM Grant Accrual 2025-26#
B61: 17 | U61: ='SC Control Sheet'!$E$6&"#"&'SC Accrual Detail'!R61 -> UIFSM Grant Accrual 2025-26#
B62: 18 | U62: ='SC Control Sheet'!$E$6&"#"&'SC Accrual Detail'!R62 -> UIFSM Grant Accrual 2025-26#
B63: 19 | U63: ='SC Control Sheet'!$E$6&"#"&'SC Accrual Detail'!R63 -> UIFSM Grant Accrual 2025-26#
B64: 20 | U64: ='SC Control Sheet'!$E$6&"#"&'SC Accrual Detail'!R64 -> UIFSM Grant Accrual 2025-26#
B65: 21 | U65: ='SC Control Sheet'!$E$6&"#"&'SC Accrual Detail'!R65 -> UIFSM Grant Accrual 2025-26#
B66: 22 | U66: ='SC Control Sheet'!$E$6&"#"&'SC Accrual Detail'!R66 -> UIFSM Grant Accrual 2025-26#
B67: 23 | U67: ='SC Control Sheet'!$E$6&"#"&'SC Accrual Detail'!R67 -> UIFSM Grant Accrual 2025-26#
B68: 24 | U68: ='SC Control Sheet'!$E$6&"#"&'SC Accrual Detail'!R68 -> UIFSM Grant Accrual 2025-26#
B69: 25 | U69: ='SC Control Sheet'!$E$6&"#"&'SC Accrual Detail'!R69 -> UIFSM Grant Accrual 2025-26#
B70: 26 | U70: ='SC Control Sheet'!$E$6&"#"&'SC Accrual Detail'!R70 -> UIFSM Grant Accrual 2025-26#
B71: 27 | U71: ='SC Control Sheet'!$E$6&"#"&'SC Accrual Detail'!R71 -> UIFSM Grant Accrual 2025-26#
B72: 28 | U72: ='SC Control Sheet'!$E$6&"#"&'SC Accrual Detail'!R72 -> UIFSM Grant Accrual 2025-26#
B73: 29 | U73: ='SC Control Sheet'!$E$6&"#"&'SC Accrual Detail'!R73 -> UIFSM Grant Accrual 2025-26#
B74: 30 | U74: ='SC Control Sheet'!$E$6&"#"&'SC Accrual Detail'!R74 -> UIFSM Grant Accrual 2025-26#
B75: 31 | U75: ='SC Control Sheet'!$E$6&"#"&'SC Accrual Detail'!R75 -> UIFSM Grant Accrual 2025-26#
B76: 32 | U76: ='SC Control Sheet'!$E$6&"#"&'SC Accrual Detail'!R76 -> UIFSM Grant Accrual 2025-26#
B77: 33 | U77: ='SC Control Sheet'!$E$6&"#"&'SC Accrual Detail'!R77 -> UIFSM Grant Accrual 2025-26#
B78: 34 | U78: ='SC Control Sheet'!$E$6&"#"&'SC Accrual Detail'!R78 -> UIFSM Grant Accrual 2025-26#
B79: 35 | U79: ='SC Control Sheet'!$E$6&"#"&'SC Accrual Detail'!R79 -> UIFSM Grant Accrual 2025-26#
B80: 36 | U80: ='SC Control Sheet'!$E$6&"#"&'SC Accrual Detail'!R80 -> UIFSM Grant Accrual 2025-26#
B81: 37 | U81: ='SC Control Sheet'!$E$6&"#"&'SC Accrual Detail'!R81 -> UIFSM Grant Accrual 2025-26#
B82: 38 | U82: ='SC Control Sheet'!$E$6&"#"&'SC Accrual Detail'!R82 -> UIFSM Grant Accrual 2025-26#
B83: 39 | U83: ='SC Control Sheet'!$E$6&"#"&'SC Accrual Detail'!R83 -> UIFSM Grant Accrual 2025-26#
B84: 40 | U84: ='SC Control Sheet'!$E$6&"#"&'SC Accrual Detail'!R84 -> UIFSM Grant Accrual 2025-26#
B85: 41 | U85: ='SC Control Sheet'!$E$6&"#"&'SC Accrual Detail'!R85 -> UIFSM Grant Accrual 2025-26#
B86: 42 | U86: ='SC Control Sheet'!$E$6&"#"&'SC Accrual Detail'!R86 -> UIFSM Grant Accrual 2025-26#
B87: 43 | U87: ='SC Control Sheet'!$E$6&"#"&'SC Accrual Detail'!R87 -> UIFSM Grant Accrual 2025-26#
B88: 44 | U88: ='SC Control Sheet'!$E$6&"#"&'SC Accrual Detail'!R88 -> UIFSM Grant Accrual 2025-26#
B89: 45 | U89: ='SC Control Sheet'!$E$6&"#"&'SC Accrual Detail'!R89 -> UIFSM Grant Accrual 2025-26#
B90: 46 | U90: ='SC Control Sheet'!$E$6&"#"&'SC Accrual Detail'!R90 -> UIFSM Grant Accrual 2025-26#
B91: 47 | U91: ='SC Control Sheet'!$E$6&"#"&'SC Accrual Detail'!R91 -> UIFSM Grant Accrual 2025-26#
B92: 48 | U92: ='SC Control Sheet'!$E$6&"#"&'SC Accrual Detail'!R92 -> UIFSM Grant Accrual 2025-26#
B93: 49 | U93: ='SC Control Sheet'!$E$6&"#"&'SC Accrual Detail'!R93 -> UIFSM Grant Accrual 2025-26#
B94: 50 | U94: ='SC Control Sheet'!$E$6&"#"&'SC Accrual Detail'!R94 -> UIFSM Grant Accrual 2025-26#
B95: 51 | U95: ='SC Control Sheet'!$E$6&"#"&'SC Accrual Detail'!R95 -> UIFSM Grant Accrual 2025-26#
B96: 52 | U96: ='SC Control Sheet'!$E$6&"#"&'SC Accrual Detail'!R96 -> UIFSM Grant Accrual 2025-26#
B97: 53 | U97: ='SC Control Sheet'!$E$6&"#"&'SC Accrual Detail'!R97 -> UIFSM Grant Accrual 2025-26#
B98: 54 | U98: ='SC Control Sheet'!$E$6&"#"&'SC Accrual Detail'!R98 -> UIFSM Grant Accrual 2025-26#
B99: 55 | U99: ='SC Control Sheet'!$E$6&"#"&'SC Accrual Detail'!R99 -> UIFSM Grant Accrual 2025-26#
B100: 56 | U100: ='SC Control Sheet'!$E$6&"#"&'SC Accrual Detail'!R100 -> UIFSM Grant Accrual 2025-26#
B101: 57 | U101: ='SC Control Sheet'!$E$6&"#"&'SC Accrual Detail'!R101 -> UIFSM Grant Accrual 2025-26#
B102: 58 | U102: ='SC Control Sheet'!$E$6&"#"&'SC Accrual Detail'!R102 -> UIFSM Grant Accrual 2025-26#
B103: 59 | U103: ='SC Control Sheet'!$E$6&"#"&'SC Accrual Detail'!R103 -> UIFSM Grant Accrual 2025-26#
B104: 60 | U104: ='SC Control Sheet'!$E$6&"#"&'SC Accrual Detail'!R104 -> UIFSM Grant Accrual 2025-26#
B105: 61 | U105: ='SC Control Sheet'!$E$6&"#"&'SC Accrual Detail'!R105 -> UIFSM Grant Accrual 2025-26#
B106: 62 | U106: ='SC Control Sheet'!$E$6&"#"&'SC Accrual Detail'!R106 -> UIFSM Grant Accrual 2025-26#
B107: 63 | U107: ='SC Control Sheet'!$E$6&"#"&'SC Accrual Detail'!R107 -> UIFSM Grant Accrual 2025-26#
B108: 64 | U108: ='SC Control Sheet'!$E$6&"#"&'SC Accrual Detail'!R108 -> UIFSM Grant Accrual 2025-26#
B109: 65 | U109: ='SC Control Sheet'!$E$6&"#"&'SC Accrual Detail'!R109 -> UIFSM Grant Accrual 2025-26#
B110: 66 | U110: ='SC Control Sheet'!$E$6&"#"&'SC Accrual Detail'!R110 -> UIFSM Grant Accrual 2025-26#
B111: =B110+1 -> 67 | U111: ='SC Control Sheet'!$E$6&"#"&'SC Accrual Detail'!R111 -> UIFSM Grant Accrual 2025-26#
B112: 68 | U112: ='SC Control Sheet'!$E$6&"#"&'SC Accrual Detail'!R112 -> UIFSM Grant Accrual 2025-26#
B113: 69 | U113: ='SC Control Sheet'!$E$6&"#"&'SC Accrual Detail'!R113 -> UIFSM Grant Accrual 2025-26#
A114: =IF(TRIM(D114)="","","update_data,visible") ->  | B114: 70 | Q114: =IF(P114="","",ROUND(P114,2)) ->  | U114: ='SC Control Sheet'!$E$6&"#"&'SC Accrual Detail'!R114 -> UIFSM Grant Accrual 2025-26# | V114: =IF(D114="","",$H$7) -> 
B115: 71 | F115: =LEFT(H115,5) ->  | U115: ='SC Control Sheet'!$E$6&"#"&'SC Accrual Detail'!R115 -> UIFSM Grant Accrual 2025-26#
B116: 72 | M116: =IF(TRIM(L116)="","","P") ->  | O116: =IF(TRIM(L116)="","","GL") ->  | U116: ='SC Control Sheet'!$E$6&"#"&'SC Accrual Detail'!R116 -> UIFSM Grant Accrual 2025-26#
B117: 73 | U117: ='SC Control Sheet'!$E$6&"#"&'SC Accrual Detail'!R117 -> UIFSM Grant Accrual 2025-26#
B118: 74 | U118: ='SC Control Sheet'!$E$6&"#"&'SC Accrual Detail'!R118 -> UIFSM Grant Accrual 2025-26#
B119: 75 | U119: ='SC Control Sheet'!$E$6&"#"&'SC Accrual Detail'!R119 -> UIFSM Grant Accrual 2025-26#
B120: 76 | U120: ='SC Control Sheet'!$E$6&"#"&'SC Accrual Detail'!R120 -> UIFSM Grant Accrual 2025-26#
B121: 77 | U121: ='SC Control Sheet'!$E$6&"#"&'SC Accrual Detail'!R121 -> UIFSM Grant Accrual 2025-26#
B122: 78 | U122: ='SC Control Sheet'!$E$6&"#"&'SC Accrual Detail'!R122 -> UIFSM Grant Accrual 2025-26#
B123: 79 | U123: ='SC Control Sheet'!$E$6&"#"&'SC Accrual Detail'!R123 -> UIFSM Grant Accrual 2025-26#
B124: 80 | U124: ='SC Control Sheet'!$E$6&"#"&'SC Accrual Detail'!R124 -> UIFSM Grant Accrual 2025-26#
B125: 81 | U125: ='SC Control Sheet'!$E$6&"#"&'SC Accrual Detail'!R125 -> UIFSM Grant Accrual 2025-26#
B126: 82 | U126: ='SC Control Sheet'!$E$6&"#"&'SC Accrual Detail'!R126 -> UIFSM Grant Accrual 2025-26#
B127: 83 | U127: ='SC Control Sheet'!$E$6&"#"&'SC Accrual Detail'!R127 -> UIFSM Grant Accrual 2025-26#
B128: 84 | U128: ='SC Control Sheet'!$E$6&"#"&'SC Accrual Detail'!R128 -> UIFSM Grant Accrual 2025-26#
B129: 85 | U129: ='SC Control Sheet'!$E$6&"#"&'SC Accrual Detail'!R129 -> UIFSM Grant Accrual 2025-26#
B130: 86 | U130: ='SC Control Sheet'!$E$6&"#"&'SC Accrual Detail'!R130 -> UIFSM Grant Accrual 2025-26#
B131: 87 | U131: ='SC Control Sheet'!$E$6&"#"&'SC Accrual Detail'!R131 -> UIFSM Grant Accrual 2025-26#
B132: 88 | U132: ='SC Control Sheet'!$E$6&"#"&'SC Accrual Detail'!R132 -> UIFSM Grant Accrual 2025-26#
B133: 89 | U133: ='SC Control Sheet'!$E$6&"#"&'SC Accrual Detail'!R133 -> UIFSM Grant Accrual 2025-26#
B134: 90 | U134: ='SC Control Sheet'!$E$6&"#"&'SC Accrual Detail'!R134 -> UIFSM Grant Accrual 2025-26#
B135: 91 | U135: ='SC Control Sheet'!$E$6&"#"&'SC Accrual Detail'!R135 -> UIFSM Grant Accrual 2025-26#
B136: 92 | U136: ='SC Control Sheet'!$E$6&"#"&'SC Accrual Detail'!R136 -> UIFSM Grant Accrual 2025-26#
B137: 93 | U137: ='SC Control Sheet'!$E$6&"#"&'SC Accrual Detail'!R137 -> UIFSM Grant Accrual 2025-26#
B138: 94 | U138: ='SC Control Sheet'!$E$6&"#"&'SC Accrual Detail'!R138 -> UIFSM Grant Accrual 2025-26#
B139: 95 | U139: ='SC Control Sheet'!$E$6&"#"&'SC Accrual Detail'!R139 -> UIFSM Grant Accrual 2025-26#
B140: 96 | U140: ='SC Control Sheet'!$E$6&"#"&'SC Accrual Detail'!R140 -> UIFSM Grant Accrual 2025-26#
B141: 97 | U141: ='SC Control Sheet'!$E$6&"#"&'SC Accrual Detail'!R141 -> UIFSM Grant Accrual 2025-26#
B142: 98 | U142: ='SC Control Sheet'!$E$6&"#"&'SC Accrual Detail'!R142 -> UIFSM Grant Accrual 2025-26#
B143: 99 | U143: ='SC Control Sheet'!$E$6&"#"&'SC Accrual Detail'!R143 -> UIFSM Grant Accrual 2025-26#
B144: 100 | U144: ='SC Control Sheet'!$E$6&"#"&'SC Accrual Detail'!R144 -> UIFSM Grant Accrual 2025-26#
B145: 101 | U145: ='SC Control Sheet'!$E$6&"#"&'SC Accrual Detail'!R145 -> UIFSM Grant Accrual 2025-26#
B146: 102 | U146: ='SC Control Sheet'!$E$6&"#"&'SC Accrual Detail'!R146 -> UIFSM Grant Accrual 2025-26#
B147: 103 | U147: ='SC Control Sheet'!$E$6&"#"&'SC Accrual Detail'!R147 -> UIFSM Grant Accrual 2025-26#
B148: 104 | U148: ='SC Control Sheet'!$E$6&"#"&'SC Accrual Detail'!R148 -> UIFSM Grant Accrual 2025-26#
B149: 105 | U149: ='SC Control Sheet'!$E$6&"#"&'SC Accrual Detail'!R149 -> UIFSM Grant Accrual 2025-26#
B150: 106 | U150: ='SC Control Sheet'!$E$6&"#"&'SC Accrual Detail'!R150 -> UIFSM Grant Accrual 2025-26#
B151: 107 | U151: ='SC Control Sheet'!$E$6&"#"&'SC Accrual Detail'!R151 -> UIFSM Grant Accrual 2025-26#
B152: 108 | U152: ='SC Control Sheet'!$E$6&"#"&'SC Accrual Detail'!R152 -> UIFSM Grant Accrual 2025-26#
B153: 109 | U153: ='SC Control Sheet'!$E$6&"#"&'SC Accrual Detail'!R153 -> UIFSM Grant Accrual 2025-26#
B154: 110 | U154: ='SC Control Sheet'!$E$6&"#"&'SC Accrual Detail'!R154 -> UIFSM Grant Accrual 2025-26#
B155: 111 | U155: ='SC Control Sheet'!$E$6&"#"&'SC Accrual Detail'!R155 -> UIFSM Grant Accrual 2025-26#
B156: 112 | U156: ='SC Control Sheet'!$E$6&"#"&'SC Accrual Detail'!R156 -> UIFSM Grant Accrual 2025-26#
B157: 113 | U157: ='SC Control Sheet'!$E$6&"#"&'SC Accrual Detail'!R157 -> UIFSM Grant Accrual 2025-26#
B158: 114 | U158: ='SC Control Sheet'!$E$6&"#"&'SC Accrual Detail'!R158 -> UIFSM Grant Accrual 2025-26#
B159: 115 | U159: ='SC Control Sheet'!$E$6&"#"&'SC Accrual Detail'!R159 -> UIFSM Grant Accrual 2025-26#
B160: 116 | U160: ='SC Control Sheet'!$E$6&"#"&'SC Accrual Detail'!R160 -> UIFSM Grant Accrual 2025-26#
B161: 117 | U161: ='SC Control Sheet'!$E$6&"#"&'SC Accrual Detail'!R161 -> UIFSM Grant Accrual 2025-26#
B162: 118 | U162: ='SC Control Sheet'!$E$6&"#"&'SC Accrual Detail'!R162 -> UIFSM Grant Accrual 2025-26#
B163: 119 | U163: ='SC Control Sheet'!$E$6&"#"&'SC Accrual Detail'!R163 -> UIFSM Grant Accrual 2025-26#
B164: 120 | U164: ='SC Control Sheet'!$E$6&"#"&'SC Accrual Detail'!R164 -> UIFSM Grant Accrual 2025-26#
B165: 121 | U165: ='SC Control Sheet'!$E$6&"#"&'SC Accrual Detail'!R165 -> UIFSM Grant Accrual 2025-26#
B166: 122 | U166: ='SC Control Sheet'!$E$6&"#"&'SC Accrual Detail'!R166 -> UIFSM Grant Accrual 2025-26#
B167: 123 | U167: ='SC Control Sheet'!$E$6&"#"&'SC Accrual Detail'!R167 -> UIFSM Grant Accrual 2025-26#
B168: 124 | U168: ='SC Control Sheet'!$E$6&"#"&'SC Accrual Detail'!R168 -> UIFSM Grant Accrual 2025-26#
B169: 125 | U169: ='SC Control Sheet'!$E$6&"#"&'SC Accrual Detail'!R169 -> UIFSM Grant Accrual 2025-26#
B170: 126 | U170: ='SC Control Sheet'!$E$6&"#"&'SC Accrual Detail'!R170 -> UIFSM Grant Accrual 2025-26#
B171: 127 | U171: ='SC Control Sheet'!$E$6&"#"&'SC Accrual Detail'!R171 -> UIFSM Grant Accrual 2025-26#
B172: 128 | U172: ='SC Control Sheet'!$E$6&"#"&'SC Accrual Detail'!R172 -> UIFSM Grant Accrual 2025-26#
B173: 129 | U173: ='SC Control Sheet'!$E$6&"#"&'SC Accrual Detail'!R173 -> UIFSM Grant Accrual 2025-26#
B174: 130 | U174: ='SC Control Sheet'!$E$6&"#"&'SC Accrual Detail'!R174 -> UIFSM Grant Accrual 2025-26#
B175: =B174+1 -> 131 | U175: ='SC Control Sheet'!$E$6&"#"&'SC Accrual Detail'!R175 -> UIFSM Grant Accrual 2025-26#
B176: 132 | U176: ='SC Control Sheet'!$E$6&"#"&'SC Accrual Detail'!R176 -> UIFSM Grant Accrual 2025-26#
B177: 133 | U177: ='SC Control Sheet'!$E$6&"#"&'SC Accrual Detail'!R177 -> UIFSM Grant Accrual 2025-26#
A178: =IF(TRIM(D178)="","","update_data,visible") ->  | B178: 134 | Q178: =IF(P178="","",ROUND(P178,2)) ->  | U178: ='SC Control Sheet'!$E$6&"#"&'SC Accrual Detail'!R178 -> UIFSM Grant Accrual 2025-26# | V178: =IF(D178="","",$H$7) -> 
B179: 135 | F179: =LEFT(H179,5) ->  | U179: ='SC Control Sheet'!$E$6&"#"&'SC Accrual Detail'!R179 -> UIFSM Grant Accrual 2025-26#
B180: 136 | M180: =IF(TRIM(L180)="","","P") ->  | O180: =IF(TRIM(L180)="","","GL") ->  | U180: ='SC Control Sheet'!$E$6&"#"&'SC Accrual Detail'!R180 -> UIFSM Grant Accrual 2025-26#
B181: 137 | U181: ='SC Control Sheet'!$E$6&"#"&'SC Accrual Detail'!R181 -> UIFSM Grant Accrual 2025-26#
B182: 138 | U182: ='SC Control Sheet'!$E$6&"#"&'SC Accrual Detail'!R182 -> UIFSM Grant Accrual 2025-26#
B183: 139 | U183: ='SC Control Sheet'!$E$6&"#"&'SC Accrual Detail'!R183 -> UIFSM Grant Accrual 2025-26#
B184: 140 | U184: ='SC Control Sheet'!$E$6&"#"&'SC Accrual Detail'!R184 -> UIFSM Grant Accrual 2025-26#
B185: 141 | U185: ='SC Control Sheet'!$E$6&"#"&'SC Accrual Detail'!R185 -> UIFSM Grant Accrual 2025-26#
B186: 142 | U186: ='SC Control Sheet'!$E$6&"#"&'SC Accrual Detail'!R186 -> UIFSM Grant Accrual 2025-26#
B187: 143 | U187: ='SC Control Sheet'!$E$6&"#"&'SC Accrual Detail'!R187 -> UIFSM Grant Accrual 2025-26#
B188: 144 | U188: ='SC Control Sheet'!$E$6&"#"&'SC Accrual Detail'!R188 -> UIFSM Grant Accrual 2025-26#
B189: 145 | U189: ='SC Control Sheet'!$E$6&"#"&'SC Accrual Detail'!R189 -> UIFSM Grant Accrual 2025-26#
B190: 146 | U190: ='SC Control Sheet'!$E$6&"#"&'SC Accrual Detail'!R190 -> UIFSM Grant Accrual 2025-26#
B191: 147 | U191: ='SC Control Sheet'!$E$6&"#"&'SC Accrual Detail'!R191 -> UIFSM Grant Accrual 2025-26#
B192: 148 | U192: ='SC Control Sheet'!$E$6&"#"&'SC Accrual Detail'!R192 -> UIFSM Grant Accrual 2025-26#
B193: 149 | U193: ='SC Control Sheet'!$E$6&"#"&'SC Accrual Detail'!R193 -> UIFSM Grant Accrual 2025-26#
B194: 150 | U194: ='SC Control Sheet'!$E$6&"#"&'SC Accrual Detail'!R194 -> UIFSM Grant Accrual 2025-26#
B195: 151 | U195: ='SC Control Sheet'!$E$6&"#"&'SC Accrual Detail'!R195 -> UIFSM Grant Accrual 2025-26#
B196: 152 | U196: ='SC Control Sheet'!$E$6&"#"&'SC Accrual Detail'!R196 -> UIFSM Grant Accrual 2025-26#
B197: 153 | U197: ='SC Control Sheet'!$E$6&"#"&'SC Accrual Detail'!R197 -> UIFSM Grant Accrual 2025-26#
B198: 154 | U198: ='SC Control Sheet'!$E$6&"#"&'SC Accrual Detail'!R198 -> UIFSM Grant Accrual 2025-26#
B199: 155 | U199: ='SC Control Sheet'!$E$6&"#"&'SC Accrual Detail'!R199 -> UIFSM Grant Accrual 2025-26#
B200: 156 | U200: ='SC Control Sheet'!$E$6&"#"&'SC Accrual Detail'!R200 -> UIFSM Grant Accrual 2025-26#
B201: 157 | U201: ='SC Control Sheet'!$E$6&"#"&'SC Accrual Detail'!R201 -> UIFSM Grant Accrual 2025-26#
B202: 158 | U202: ='SC Control Sheet'!$E$6&"#"&'SC Accrual Detail'!R202 -> UIFSM Grant Accrual 2025-26#
B203: 159 | U203: ='SC Control Sheet'!$E$6&"#"&'SC Accrual Detail'!R203 -> UIFSM Grant Accrual 2025-26#
B204: 160 | U204: ='SC Control Sheet'!$E$6&"#"&'SC Accrual Detail'!R204 -> UIFSM Grant Accrual 2025-26#
B205: 161 | U205: ='SC Control Sheet'!$E$6&"#"&'SC Accrual Detail'!R205 -> UIFSM Grant Accrual 2025-26#
B206: 162 | U206: ='SC Control Sheet'!$E$6&"#"&'SC Accrual Detail'!R206 -> UIFSM Grant Accrual 2025-26#
B207: 163 | U207: ='SC Control Sheet'!$E$6&"#"&'SC Accrual Detail'!R207 -> UIFSM Grant Accrual 2025-26#
B208: 164 | U208: ='SC Control Sheet'!$E$6&"#"&'SC Accrual Detail'!R208 -> UIFSM Grant Accrual 2025-26#
B209: 165 | U209: ='SC Control Sheet'!$E$6&"#"&'SC Accrual Detail'!R209 -> UIFSM Grant Accrual 2025-26#
B210: 166 | U210: ='SC Control Sheet'!$E$6&"#"&'SC Accrual Detail'!R210 -> UIFSM Grant Accrual 2025-26#
B211: 167 | U211: ='SC Control Sheet'!$E$6&"#"&'SC Accrual Detail'!R211 -> UIFSM Grant Accrual 2025-26#
... 843 more rows

Sheet Tables (hidden)
B2: Month | C2: Period | E2: Description | F2: Account | G2: Description | H2: CostC | I2: Description | J2: Analysis4 | K2: Description | L2: Analysis3 | M2: Description | N2: Analysis2 | O2: Description | P2: Analysis | S2: Name | T2: ID | W2: Description | X2: Analysis3 | Y2: Description | Z2: Analysis3 | AA2: Len | AB2: Type | AC2: Description | AD2: Cat | AE2: Mnt | AF2: S
B3: Please select | C3: Please select | E3: Sundry Creditors (BZ549) | F3: BZ549 | G3: Corporate Balance Sheet (90000) | H3: 90000 | I3: Please select | K3: =IF(IF('SC Control Sheet'!$E$9="Receipts in Advance (BZ547)",Tables!Y3,Tables!W3)=0,"",IF('SC Control Sheet'!$E$9="Receipts in Advance (BZ547)",Tables!Y3,Tables!W3)) -> Capital (CAP01) | L3: CAP01 | M3: NNDR (Z7001) | N3: Z7001 | O3: Prior Year Adjustments (Z9001) | P3: Z9001 | S3: text att_name | T3: text attribute_id | W3: Capital (CAP01) | X3: CAP01 | Y3: Capital (CAP01) | Z3: CAP01 | AA3: text data_length | AB3: text data_type | AC3: text description | AD3: text dim_position | AE3: text maintenance | AF3: text status
B4: 2015-03-01 | C4: 201412 | G4: Farley Hill Balance Sheet (91111) | H4: 91111 | I4: Chief Executives Office (99999-101) | J4: 99999-101 | K4: =IF(IF('SC Control Sheet'!$E$9="Receipts in Advance (BZ547)",Tables!Y4,Tables!W4)=0,"",IF('SC Control Sheet'!$E$9="Receipts in Advance (BZ547)",Tables!Y4,Tables!W4)) -> Revenue (REV01) | L4: REV01 | M4: Summons Costs (Z7002) | N4: Z7002 | O4: PFI Finance Lease Payment (Z9002) | P4: Z9002 | T4: Position 0 | W4: Revenue (REV01) | X4: REV01 | Y4: Revenue (REV01) | Z4: REV01
B5: Adj-15 | C5: 201413 | G5: The Holt Balance Sheet (91204) | H5: 91204 | I5: Adult Services (99999-103) | J5: 99999-103 | K5: =IF(IF('SC Control Sheet'!$E$9="Receipts in Advance (BZ547)",Tables!Y5,Tables!W5)=0,"",IF('SC Control Sheet'!$E$9="Receipts in Advance (BZ547)",Tables!Y5,Tables!W5)) ->  | M5: Carters Hill Park (Z7101) | N5: Z7101 | O5: Payments in Year (Z9003) | P5: Z9003 | R5: ACCOUNT | S5: ACCOUNT | T5: A0 | Y5: Housing GF Accounts 2003/04 (Y9001) | Z5: Y9001 | AA5: 8 | AB5: A | AC5: Account | AD5: 0 | AE5: A | AF5: N
B6: 2015-04-01 | C6: 201501 | G6: Waingels Copse Balance Sheet (91209) | H6: 91209 | I6: Children's Services (99999-104) | J6: 99999-104 | K6: =IF(IF('SC Control Sheet'!$E$9="Receipts in Advance (BZ547)",Tables!Y6,Tables!W6)=0,"",IF('SC Control Sheet'!$E$9="Receipts in Advance (BZ547)",Tables!Y6,Tables!W6)) ->  | M6: Twyford Orchards (Z7102) | N6: Z7102 | O6: Interest Paid on Balances (Z9004) | P6: Z9004 | T6: Category 1 | Y6: Housing GF Accounts 2008/09 (Y9002) | Z6: Y9002
B7: 2015-05-01 | C7: 201502 | G7: HRA Balance Sheet (93500) | H7: 93500 | I7: Place & Growth (99999-105) | J7: 99999-105 | K7: =IF(IF('SC Control Sheet'!$E$9="Receipts in Advance (BZ547)",Tables!Y7,Tables!W7)=0,"",IF('SC Control Sheet'!$E$9="Receipts in Advance (BZ547)",Tables!Y7,Tables!W7)) ->  | M7: Grovelands (Z7201) | N7: Z7201 | O7: Precepts Paid (Z9005) | P7: Z9005 | R7: CAT1 | S7: COSTC | T7: C1 | Y7: Housing GF Accounts 2009/10 (Y9003) | Z7: Y9003 | AA7: 8 | AB7: A | AC7: Cost centre (CC) | AD7: 1 | AE7: M | AF7: N
B8: 2015-06-01 | C8: 201503 | I8: Resources & Assets (99999-106) | J8: 99999-106 | K8: =IF(IF('SC Control Sheet'!$E$9="Receipts in Advance (BZ547)",Tables!Y8,Tables!W8)=0,"",IF('SC Control Sheet'!$E$9="Receipts in Advance (BZ547)",Tables!Y8,Tables!W8)) ->  | M8: California Homeless (Z7202) | N8: Z7202 | O8: DR Transfer to Services (Z9006) | P8: Z9006 | T8: Category 2 | Y8: Housing GF Accounts 2010/11 (Y9004) | Z8: Y9004
B9: 2015-07-01 | C9: 201504 | I9: Housing General Fund (99999-110) | J9: 99999-110 | K9: =IF(IF('SC Control Sheet'!$E$9="Receipts in Advance (BZ547)",Tables!Y9,Tables!W9)=0,"",IF('SC Control Sheet'!$E$9="Receipts in Advance (BZ547)",Tables!Y9,Tables!W9)) ->  | M9: Oxford Road (Z7203) | N9: Z7203 | O9: Service Charge (Z9007) | P9: Z9007 | R9: CAT2 | S9: PROJECT | T9: B0 | Y9: Housing GF Accounts 2011/12 (Y9005) | Z9: Y9005 | AA9: 8 | AB9: A | AC9: Project code | AD9: 2 | AE9: M | AF9: N
B10: 2015-08-01 | C10: 201505 | I10: Housing Revenue Account (99999-111) | J10: 99999-111 | K10: =IF(IF('SC Control Sheet'!$E$9="Receipts in Advance (BZ547)",Tables!Y10,Tables!W10)=0,"",IF('SC Control Sheet'!$E$9="Receipts in Advance (BZ547)",Tables!Y10,Tables!W10)) ->  | M10: Shared Owernership (Z7204) | N10: Z7204 | O10: IAS 19 - Pension Costs (Z9008) | P10: Z9008 | T10: Category 3 | Y10: Housing GF Accounts 2012/13 (Y9006) | Z10: Y9006
B11: 2015-09-01 | C11: 201506 | I11: Children's Services - Schools Block (99999-112) | J11: 99999-112 | K11: =IF(IF('SC Control Sheet'!$E$9="Receipts in Advance (BZ547)",Tables!Y11,Tables!W11)=0,"",IF('SC Control Sheet'!$E$9="Receipts in Advance (BZ547)",Tables!Y11,Tables!W11)) ->  | M11: Parliamentary Elections (Z7301) | N11: Z7301 | O11: Fund Managers Fees (Z9009) | P11: Z9009 | R11: CAT3 | S11: RESNO | T11: C0 | Y11: Housing Revenue Accounts 2003/04 (Y9007) | Z11: Y9007 | AA11: 8 | AB11: A | AC11: Employee | AD11: 3 | AE11: A | AF11: N
B12: 2015-10-01 | C12: 201507 | I12: Community, Insight & Change (99999-116) | J12: 99999-116 | M12: European Elections (Z7302) | N12: Z7302 | O12: Contribution to Provision for Bad Debts (Z9010) | P12: Z9010 | R12: CAT3 | S12: ASSET | T12: F0 | AA12: 8 | AB12: A | AC12: Fixed Assets | AD12: 3 | AE12: A | AF12: N
B13: 2015-11-01 | C13: 201508 | I13: Service - General (99999-399) | J13: 99999-399 | M13: Local Elections (Z7303) | N13: Z7303 | O13: Treasury Consultancy Services (Z9011) | P13: Z9011 | T13: Category 4
B14: 2015-12-01 | C14: 201509 | I14: Wokingham Enterprise Limited (Z1000-100) | J14: Z1000-100 | M14: Police Commissioner Elections (Z7304) | N14: Z7304 | O14: PWLB Fees Payable (Z9012) | P14: Z9012 | R14: CAT4 | S14: ANALYSIS4 | T14: 40 | AA14: 5 | AB14: A | AC14: Analysis 4 | AD14: 4 | AE14: M | AF14: N
B15: 2016-01-01 | C15: 201510 | I15: Optalis (Z1001-100) | J15: Z1001-100 | O15: RD Direct Debit (Z9013) | P15: Z9013 | R15: CAT4 | S15: WORKORD | T15: BF | AA15: 12 | AB15: A | AC15: Work order code | AD15: 4 | AE15: A | AF15: N
B16: 2016-02-01 | C16: 201511 | I16: Wokingham Housing Ltd (Z1002-100) | J16: Z1002-100 | O16: Refunds (Z9014) | P16: Z9014 | T16: Category 5
B17: 2016-03-01 | C17: 201512 | O17: Receipts in Year (Z9015) | P17: Z9015 | R17: CAT5 | S17: ANALYSIS3 | T17: 50 | AA17: 5 | AB17: A | AC17: Analysis 3 | AD17: 5 | AE17: M | AF17: N
B18: Adj-16 | C18: 201513 | O18: Council Tax Income (Z9016) | P18: Z9016 | R18: CAT5 | S18: ACTIVITY | T18: B1 | AA18: 12 | AB18: A | AC18: Activity code | AD18: 5 | AE18: M | AF18: N
B19: 2016-04-01 | C19: 201601 | O19: CR Transfer to Services (Z9017) | P19: Z9017 | R19: CAT5 | S19: POSNO | T19: CG | AA19: 12 | AB19: A | AC19: Position code | AD19: 5 | AE19: A | AF19: N
B20: 2016-05-01 | C20: 201602 | O20: Collection Fund Surplus Timing Difference (Z9018) | P20: Z9018 | T20: Category 6
B21: 2016-06-01 | C21: 201603 | O21: Interest Generated from Balances (Z9019) | P21: Z9019 | R21: CAT6 | S21: ANALYSIS2 | T21: 61 | AA21: 5 | AB21: A | AC21: Analysis 2 | AD21: 6 | AE21: M | AF21: N
B22: 2016-07-01 | C22: 201604 | O22: Tax Deducted from Payments (Z9020) | P22: Z9020 | R22: CAT6 | S22: EXTFUNDING | T22: 62 | AA22: 5 | AB22: A | AC22: External Funding | AD22: 6 | AE22: M | AF22: N
B23: 2016-08-01 | C23: 201605 | O23: Repayment of Principal (Z9021) | P23: Z9021 | R23: CAT6 | S23: EMP_CAT | T23: 63 | AA23: 5 | AB23: A | AC23: Employee Category | AD23: 6 | AE23: M | AF23: N
B24: 2016-09-01 | C24: 201606 | O24: Repayment of Interest (Z9022) | P24: Z9022 | R24: CAT6 | S24: ICS_CODE | T24: 64 | AA24: 5 | AB24: A | AC24: Integrated CS Code | AD24: 6 | AE24: M | AF24: N
B25: 2016-10-01 | C25: 201607 | O25: Transfer to / from School Reserves (Z9023) | P25: Z9023 | R25: CAT6 | S25: WGA | T25: LG05 | AA25: 4 | AB25: A | AC25: WGA Reporting | AD25: 6 | AE25: M | AF25: N
B26: 2016-11-01 | C26: 201608 | O26: Transfer to Earmarked Reserves (Z9024) | P26: Z9024 | T26: Category 7
B27: 2016-12-01 | C27: 201609 | O27: Transfer to / from Usable Capital Receipts Reserve (Z9025) | P27: Z9025 | R27: CAT7 | S27: ANALYSIS | T27: 70 | AA27: 5 | AB27: A | AC27: Analysis | AD27: 7 | AE27: M | AF27: N
B28: 2017-01-01 | C28: 201610 | O28: Transfer to / from DSG Reserve (Z9026) | P28: Z9026
B29: 2017-02-01 | C29: 201611 | O29: Transfer to / from Pensions Reserve (Z9027) | P29: Z9027
B30: 2017-03-01 | C30: 201612 | O30: Transfer from Earmarked Reserve (Z9028) | P30: Z9028
B31: Adj-17 | C31: 201613 | O31: Transfer to / from Accumulated Absences Account (Z9029) | P31: Z9029
B32: 2017-04-01 | C32: 201701 | O32: Transfer to / from Capital Grants & Contributions Unapplied Reserve (Z9030) | P32: Z9030
B33: 2017-05-01 | C33: 201702 | O33: Transfer Capital Grants to Capital Adjustment Account (Z9031) | P33: Z9031
B34: 2017-06-01 | C34: 201703 | O34: Depreciation (Z9032) | P34: Z9032
B35: 2017-07-01 | C35: 201704 | O35: Deferred Charges (Z9033) | P35: Z9033
B36: 2017-08-01 | C36: 201705 | O36: Deferred Grants and Contributions (Z9034) | P36: Z9034
B37: 2017-09-01 | C37: 201706 | O37: Impairment (Z9035) | P37: Z9035
B38: 2017-10-01 | C38: 201707 | O38: Amortisation of Intangible Assets (Z9036) | P38: Z9036
B39: 2017-11-01 | C39: 201708 | O39: Disposal of Fixed Assets (Z9037) | P39: Z9037
B40: 2017-12-01 | C40: 201709 | O40: Revaluation of Fixed Assets (Z9038) | P40: Z9038
B41: 2018-01-01 | C41: 201710 | O41: MRP Adjustment (Z9039) | P41: Z9039
B42: 2018-02-01 | C42: 201711 | O42: Amortisation of Premiums and Discounts (Z9040) | P42: Z9040
B43: 2018-03-01 | C43: 201712 | O43: Financial Instruments Adjustment Account Transfer (Z9041) | P43: Z9041
B44: Adj-18 | C44: 201713 | O44: Impairment of Financial Instruments (Z9042) | P44: Z9042
B45: 2018-04-01 | C45: 201801 | O45: Transfer from Chargepayers (Z9043) | P45: Z9043
B46: 2018-05-01 | C46: 201802 | O46: Transfer to Collection Fund (Z9044) | P46: Z9044
B47: 2018-06-01 | C47: 201803 | O47: NNDR Income (Z9045) | P47: Z9045
B48: 2018-07-01 | C48: 201804 | O48: WBC Business Rates (Z9046) | P48: Z9046
B49: 2018-08-01 | C49: 201805 | O49: Cheque Payments (Z9047) | P49: Z9047
B50: 2018-09-01 | C50: 201806 | O50: MOD Grant in Lieu of Council Tax (Z9048) | P50: Z9048
B51: 2018-10-01 | C51: 201807 | O51: Direct Debit Payments (Z9049) | P51: Z9049
B52: 2018-11-01 | C52: 201808 | O52: Council Tax Benefit from GF (Z9050) | P52: Z9050
B53: 2018-12-01 | C53: 201809 | O53: Council Tax Refunds (Z9051) | P53: Z9051
B54: 2019-01-01 | C54: 201810 | O54: Receipts from NNDR Pool (Z9052) | P54: Z9052
B55: 2019-02-01 | C55: 201811 | O55: Contribution to NNDR Pool (Z9053) | P55: Z9053
B56: 2019-03-01 | C56: 201812 | O56: NNDR Refunds (Z9054) | P56: Z9054
B57: Adj-19 | C57: 201813 | O57: NNDR Collection Allowance Paid to GF (Z9055) | P57: Z9055
B58: 2019-04-01 | C58: 201901 | O58: NNDR Provision for Bad Debts (Z9056) | P58: Z9056
B59: 2019-05-01 | C59: 201902 | O59: NNDR Collection Costs (Z9057) | P59: Z9057
B60: 2019-06-01 | C60: 201903 | O60: Net Pay Control (Z9058) | P60: Z9058
B61: 2019-07-01 | C61: 201904 | O61: Deductions Control (Z9059) | P61: Z9059
B62: 2019-08-01 | C62: 201905
B63: 2019-09-01 | C63: 201906
B64: 2019-10-01 | C64: 201907
B65: 2019-11-01 | C65: 201908
B66: 2019-12-01 | C66: 201909
B67: 2020-01-01 | C67: 201910
B68: 2020-02-01 | C68: 201911
B69: 2020-03-01 | C69: 201912
B70: Adj-20 | C70: 201913
B71: 2020-04-01 | C71: 202001
B72: 2020-05-01 | C72: 202002
B73: 2020-06-01 | C73: 202003
B74: 2020-07-01 | C74: 202004
B75: 2020-08-01 | C75: 202005
B76: 2020-09-01 | C76: 202006
B77: 2020-10-01 | C77: 202007
B78: 2020-11-01 | C78: 202008
B79: 2020-12-01 | C79: 202009
B80: 2021-01-01 | C80: 202010
B81: 2021-02-01 | C81: 202011
B82: 2021-03-01 | C82: 202012
B83: Adj-21 | C83: 202013
B84: 2021-04-01 | C84: 202101
B85: 2021-05-01 | C85: 202102
B86: 2021-06-01 | C86: 202103
B87: 2021-07-01 | C87: 202104
B88: 2021-08-01 | C88: 202105
B89: 2021-09-01 | C89: 202106
B90: 2021-10-01 | C90: 202107
B91: 2021-11-01 | C91: 202108
B92: 2021-12-01 | C92: 202109
B93: 2022-01-01 | C93: 202110
B94: 2022-02-01 | C94: 202111
B95: 2022-03-01 | C95: 202112
B96: Adj-22 | C96: 202113
B97: 2022-04-01 | C97: 202201
B98: 2022-05-01 | C98: 202202
B99: 2022-06-01 | C99: 202203
B100: 2022-07-01 | C100: 202204
B101: 2022-08-01 | C101: 202205
B102: 2022-09-01 | C102: 202206
B103: 2022-10-01 | C103: 202207
B104: 2022-11-01 | C104: 202208
B105: 2022-12-01 | C105: 202209
B106: 2023-01-01 | C106: 202210
B107: 2023-02-01 | C107: 202211
B108: 2023-03-01 | C108: 202212
B109: Adj-23 | C109: 202213
B110: 2023-04-01 | C110: 202301
B111: 2023-05-01 | C111: 202302
B112: 2023-06-01 | C112: 202303
B113: 2023-07-01 | C113: 202304
B114: 2023-08-01 | C114: 202305
B115: 2023-09-01 | C115: 202306
B116: 2023-10-01 | C116: 202307
B117: 2023-11-01 | C117: 202308
B118: 2023-12-01 | C118: 202309
B119: 2024-01-01 | C119: 202310
B120: 2024-02-01 | C120: 202311
B121: 2024-03-01 | C121: 202312
B122: Adj-24 | C122: 202313
B123: OB-10 | C123: 201000

Sheet SD (hidden)
A1: Sundry DEBTOR Accounts Receivable - Schools Only
A2: To be used for any invoices/charges relating to goods/services that arrived before or on 31st March 2023 and which have not been charged to BWO
A4: Schools | L4: =CONCATENATE("Closedown ",Dates_Pmts_Info!C2) -> Closedown 2025-26
A6: School Name: | D6: =Calculator!B1 -> Please select from the list
A8: NB Grey cells will automatically complete | H8: Amount | J8: Required for Audit purposes only.
H9: Excluding VAT | I9: This data will appear on BWO. | J9: (this data will not appear on BWO)
A10: Account Code | B10: Cost Centre | C10: Project | D10: Category 4 | E10: Category 5 | F10: Analysis | G10: +/- | H10: £ | I10: Name of Debtor and Invoice Number | J10: Date Goods /Services Received | L10: Description
A11: BZ345 | B11: 90000 | C11: 99999 | D11: 99999-112 | E11: REV01 | F11: Z9017 | G11: + | H11: =-SUM(H12:H25) ->  | I11: =CONCATENATE("Sundry Debtor for " &D6) -> Sundry Debtor for Please select from the list
A12: R9007 | B12: =Calculator!J1 ->  | C12: 99999 | D12: 99999-999 | G12: - | H12: =Calculator!B31*-1 ->  | I12: =CONCATENATE("UIFSM Grant Accrual ",Dates_Pmts_Info!C2) -> UIFSM Grant Accrual 2025-26 | J12: =Dates_Pmts_Info!J2 -> 2026-03-31 | L12: UIFSM Grant allocation adjustment
G13: -
G14: -
G15: -
G16: -
G17: -
G18: -
G19: -
G20: -
G21: -
G22: -
G23: -
G24: -
G25: -
H26: =H11+SUM(H12:H25) -> 
A27: =CONCATENATE("PLEASE RETAIN A SIGNED COPY FOR SCHOOL RECORDS AND EMAIL THIS SPREADSHEET TO SCHOOLSFINANCEHELPDESK@WOKINGHAM.GOV.UK BY MIDDAY ON ",Dates_Pmts_Info!I2,".") -> PLEASE RETAIN A SIGNED COPY FOR SCHOOL RECORDS AND EMAIL THIS SPREADSHEET TO SCHOOLSFINANCEHELPDESK@WOKINGHAM.GOV.UK BY MIDDAY ON FRIDAY, 20TH MARCH 2026.
A29: =CONCATENATE("IMPORTANT: I confirm that the above transactions have been recorded in my ",Dates_Pmts_Info!C2," BWO report, and that they relate to goods or services that will be provided to the school on or after ",Dates_Pmts_Info!K2,".") -> IMPORTANT: I confirm that the above transactions have been recorded in my 2025-26 BWO report, and that they relate to goods or services that will be provided to the school on or after 1st April 2026.
A32: Authorised by the Head teacher

Sheet Config (2) (hidden)
A1: Settings | B1: Value
A2: Provider | B2: SQLOLEDB
A3: Data Source | B3: WDC-SQLTEST01\AGRESSOTEST
A4: Database | B4: Agresso
A5: User Id | B5: wbcfin
A6: Password | B6: !0553rgA
A7: Show Errors and Warnings | B7: N
A8: Show Connection String Only | B8: N
A9: Show Errors and Account Warnings Start Column | B9: 27
A10: Start Row of Journal | B10: 47
A11: End Row of Journal | B11: 2999
A12: Client | B12: WBC
A13: Show Errors and Categegoroy Warnings Start Column | B13: 70

Sheet SD Control Sheet (hidden)
D2: BWO - Accrual Control Sheet
D5: Accrual Details
D6: Description | E6: =SD!I11 -> Sundry Debtor for Please select from the list
D7: Accrual Period | E7: =Dates_Pmts_Info!L2 -> 202512
D8: Reversing Period | E8: =Dates_Pmts_Info!M2 -> 202601
D9: Accrual Type | E9: Sundry Debtors (BZ345)
D10: Balance Sheet Cost Centre | E10: Corporate Balance Sheet (90000)
D11: Service | E11: Children's Services (99999-104)
D12: Revenue/Capital | E12: Revenue (REV01)
D13: Analysis 2
D14: Analysis
D18: Category | E18: Select Posting Attribute
D19: ACCOUNT | E19: ACCOUNT
D20: CAT1 | E20: COSTC
D21: CAT2 | E21: PROJECT
D22: CAT3 | E22: RESNO
D23: CAT4 | E23: WORKORD
D24: CAT5 | E24: POSNO
D25: CAT6 | E25: EXTFUNDING
D26: CAT7 | E26: ANALYSIS

Sheet SD Accrual Detail (hidden)
A1: =D1&E1 -> setdefault account= | D1: setdefault account= | G1: ='SD Control Sheet'!E9 -> Sundry Debtors (BZ345) | H1: =IF(G1=0,"",VLOOKUP(G1,'Tables (2)'!E:F,2,FALSE)) -> BZ345
A2: setdefault amount= | D2: setdefault amount= | G2: ='SD Control Sheet'!E10 -> Corporate Balance Sheet (90000) | H2: =IF(G2=0,"",VLOOKUP(G2,'Tables (2)'!G:H,2,FALSE)) -> 90000
A3: setdefault client=WBC | D3: setdefault client= | E3: WBC | G3: ='SD Control Sheet'!E11 -> Children's Services (99999-104) | H3: =IF(G3=0,"",VLOOKUP(G3,'Tables (2)'!I:J,2,FALSE)) -> 99999-104
A4: setdefault cur_amount= | D4: setdefault cur_amount= | G4: ='SD Control Sheet'!E12 -> Revenue (REV01) | H4: =IF(G4=0,"",VLOOKUP(G4,'Tables (2)'!K:L,2,FALSE)) -> REV01
A5: setdefault currency=GBP | D5: setdefault currency= | E5: GBP | G5: ='SD Control Sheet'!E13 -> 0 | H5: =IF(G5=0,"",VLOOKUP(G5,'Tables (2)'!M:N,2,FALSE)) -> 
A6: setdefault description= | D6: setdefault description= | G6: ='SD Control Sheet'!E14 -> 0 | H6: =IF(G6=0,"",VLOOKUP(G6,'Tables (2)'!O:P,2,FALSE)) -> 
A7: setdefault variant_number=99 | D7: setdefault variant_number= | E7: 99 | G7: ='SD Control Sheet'!E7 -> 2454-06-15 | H7: ='SD Control Sheet'!$E$7 -> 202512
A8: setdefault dim_1=C1 | D8: setdefault dim_1= | E8: =VLOOKUP('SD Control Sheet'!E20,'Tables (2)'!S:T,2,FALSE) -> C1 | G8: ='SD Control Sheet'!E8 -> 2454-09-12 | H8: ='SD Control Sheet'!$E$8 -> 202601
A9: setdefault dim_2=B0 | D9: setdefault dim_2= | E9: =VLOOKUP('SD Control Sheet'!E21,'Tables (2)'!S:T,2,FALSE) -> B0
A10: setdefault dim_3=C0 | D10: setdefault dim_3= | E10: =VLOOKUP('SD Control Sheet'!E22,'Tables (2)'!S:T,2,FALSE) -> C0
A11: setdefault dim_4=BF | D11: setdefault dim_4= | E11: =VLOOKUP('SD Control Sheet'!E23,'Tables (2)'!S:T,2,FALSE) -> BF
A12: setdefault dim_5=CG | D12: setdefault dim_5= | E12: =VLOOKUP('SD Control Sheet'!E24,'Tables (2)'!S:T,2,FALSE) -> CG
A13: setdefault dim_6=62 | D13: setdefault dim_6= | E13: =VLOOKUP('SD Control Sheet'!E25,'Tables (2)'!S:T,2,FALSE) -> 62
A14: setdefault dim_7=70 | D14: setdefault dim_7= | E14: =VLOOKUP('SD Control Sheet'!E26,'Tables (2)'!S:T,2,FALSE) -> 70
A15: setdefault apar_name=Sundry Debtor for Please select from the list | D15: setdefault apar_name= | E15: ='SD Control Sheet'!E6 -> Sundry Debtor for Please select from the list
A16: setdefault interface=GL | D16: setdefault interface= | E16: GL
A17: setdefault number_1=0 | D17: setdefault number_1= | E17: 0
A19: =D19&E19 -> setdefault sequence_no= | D19: setdefault sequence_no=
A20: setdefault status=N | D20: setdefault status= | E20: N
A21: setdefault trans_date=10/02/2026 | D21: setdefault trans_date= | E21: =TEXT(F21,"dd/mm/yyyy") -> 10/02/2026 | F21: =TODAY() -> 2026-02-10
A22: setdefault trans_type=GL | D22: setdefault trans_type= | E22: GL
A23: setdefault value_1=0 | D23: setdefault value_1= | E23: 0
A24: setdefault voucher_date=10/02/2026 | D24: setdefault voucher_date= | E24: =TEXT(F24,"dd/mm/yyyy") -> 10/02/2026 | F24: =TODAY() -> 2026-02-10
A25: setdefault voucher_no= | D25: setdefault voucher_no=
A26: setdefault voucher_type=G8 | D26: setdefault voucher_type= | E26: G8
A27: =D27&E27&F27 -> setdefault batch_id=<user_id>460636398 | D27: setdefault batch_id= | E27: <user_id> | F27: =G27*10000 -> 460636398 | G27: =ROUND(NOW(),4) -> 46063.6398
A29: update_columns GL07 | B29: sequence_no | D29: account | E29: dim_1 | F29: dim_2 | G29: dim_3 | H29: dim_4 | I29: dim_5 | J29: dim_6 | K29: dim_7 | L29: apar_id | M29: apar_type | N29: ext_inv_ref | O29: trans_type | P29: amount | Q29: cur_amount | U29: description | V29: period
D32: Accrual Template
D38: ='SD Control Sheet'!E6 -> Sundry Debtor for Please select from the list | R38: =IF(ABS(SUM(Q42:Q544))<0.00001,"Status: OK","Status: Do Not Upload - Must be a Balanced Journal") ->  | W38: =COLUMN(W38) -> 23 | X38: =COLUMN(X38) -> 24 | Y38: 25 | Z38: 26 | AA38: 27 | AB38: 28 | AC38: 29 | AD38: 30 | AE38: 31 | AF38: 32 | AG38: 33 | AH38: 34 | AI38: 35 | AJ38: 36 | AK38: 37 | AL38: 38 | AM38: 39 | AN38: 40 | AO38: 41 | AP38: 42 | AQ38: 43 | AR38: 44 | AS38: 45 | AT38: 46 | AU38: 47 | AV38: 48 | AW38: 49 | AX38: 50 | AY38: 51 | AZ38: 52 | BA38: 53 | BN38: 66 | BO38: 67 | BP38: 68 | BQ38: 69 | BR38: 70 | BS38: 71 | BT38: 72 | BU38: 73
D41: ACCOUNT | E41: CAT1 | F41: CAT2 | G41: CAT3 | H41: CAT4 | I41: CAT5 | J41: CAT6 | K41: CAT7 | L41: APAR_id | M41: APAR Type | N41: Invoice number | O41: Trans Type | P41: AMOUNT | Q41: Cur Amt | R41: LINE DESCRIPTION | W41: Valid Acc | X41: AccRule | Y41: Rule Name | Z41: Cat1 | AA41: Name | AB41: Type | AC41: Value | AD41: Cat2 | AE41: Name | AF41: Type | AG41: Value | AH41: Cat3 | AI41: Name | AJ41: Type | AK41: Value | AL41: Cat4 | AM41: Name | AN41: Type | AO41: Value | AP41: Cat5 | AQ41: Name | AR41: Type | AS41: Value | AT41: Cat6 | AU41: Name | AV41: Type | AW41: Value | AX41: Cat7 | AY41: Name | AZ41: Type | BA41: Value | BN41: Cat_1 | BO41: Cat_2 | BP41: Cat_3 | BQ41: Cat_2(4) | BR41: Cat_5 | BS41: Cat_6 | BT41: Cat_7 | BU41: Cat_4 (W/O)
A42: =IF(TRIM(D42)="","","update_data,visible") -> update_data,visible | B42: 1 | D42: =H1 -> BZ345 | E42: =H2 -> 90000 | F42: =IF(LEN(H42)>5,LEFT(H42,5),"") -> 99999 | H42: =H3 -> 99999-104 | I42: =H4 -> REV01 | J42: =H5 ->  | K42: =H6 ->  | L42: 507925 | M42: R | N42: 1 | O42: =IF(TRIM(L42)="","","GL") -> GL | P42: =-SUM($P$50:$P$544) ->  | Q42: =IF(P42="","",ROUND(P42,2)) ->  | U42: ='SD Control Sheet'!$E$6&"#"&'SD Accrual Detail'!R42 -> Sundry Debtor for Please select from the list# | V42: =IF(D42="","",$H$7) -> 202512
A43: =IF(TRIM(D43)="","","update_data,visible") ->  | D43: =IF(TRIM(L43)="","",$D$42) ->  | E43: =IF(TRIM(D43)="","",E42) ->  | F43: =IF(LEN(H43)>5,LEFT(H43,5),"") ->  | H43: =IF(TRIM(D43)="","",$H$42) ->  | I43: =IF(TRIM(H43)="","",$I$42) ->  | M43: =IF(TRIM(D43)="","",$M$42) ->  | N43: =IF(TRIM(D43)="","",$N$42) ->  | O43: =IF(TRIM(D43)="","",$O$42) ->  | P43: 0 | Q43: =IF(P43="","",ROUND(P43,2)) -> 0 | U43: ='SD Control Sheet'!$E$6&"#"&'SD Accrual Detail'!R43 -> Sundry Debtor for Please select from the list# | V43: =IF(D43="","",$H$7) -> 
D44: =IF(TRIM(L44)="","",$D$42) ->  | E44: =IF(TRIM(D44)="","",E42) ->  | H44: =IF(TRIM(D44)="","",$H$42) ->  | I44: =IF(TRIM(H44)="","",$I$42) ->  | M44: =IF(TRIM(D44)="","",$M$42) ->  | N44: =IF(TRIM(D44)="","",$N$42) ->  | O44: =IF(TRIM(D44)="","",$O$42) ->  | P44: 0 | Q44: 0 | U44: ='SD Control Sheet'!$E$6&"#"&'SD Accrual Detail'!R44 -> Sundry Debtor for Please select from the list# | V44: =IF(D44="","",$H$7) -> 
D45: =IF(TRIM(L45)="","",$D$42) ->  | E45: =IF(TRIM(D45)="","",E42) ->  | H45: =IF(TRIM(D45)="","",$H$42) ->  | I45: =IF(TRIM(H45)="","",$I$42) ->  | M45: =IF(TRIM(D45)="","",$M$42) ->  | N45: =IF(TRIM(D45)="","",$N$42) ->  | O45: =IF(TRIM(D45)="","",$O$42) ->  | P45: 0 | Q45: 0 | U45: ='SD Control Sheet'!$E$6&"#"&'SD Accrual Detail'!R45 -> Sundry Debtor for Please select from the list# | V45: =IF(D45="","",$H$7) -> 
B46: =B42+1 -> 2
B47: =B46+1 -> 3
B48: 4
B49: 5 | D49: ACCOUNT | E49: CAT1 | F49: CAT2 | G49: CAT3 | H49: CAT4 | I49: CAT5 | J49: CAT6 | K49: CAT7 | L49: APAR_id | M49: APAR Type | N49: Invoice number | O49: Trans Type | P49: AMOUNT | Q49: Cur Amt | R49: LINE DESCRIPTION
A50: =IF(TRIM(D50)="","","update_data,visible") -> update_data,visible | B50: 6 | D50: =SD!A12 -> R9007 | E50: =SD!B12 ->  | F50: =LEFT(H50,5) -> 99999 | H50: =SD!D12 -> 99999-999 | J50: V1105 | L50: 507925 | M50: R | N50: 1 | O50: =IF(TRIM(L50)="","","GL") -> GL | P50: =SD!H12 ->  | Q50: =IF(P50="","",ROUND(P50,2)) ->  | R50: =SD!I12&" "&SD!L12 -> UIFSM Grant Accrual 2025-26 UIFSM Grant allocation adjustment | U50: ='SD Control Sheet'!$E$6&"#"&'SD Accrual Detail'!R50 -> Sundry Debtor for Please select from the list#UIFSM Grant Accrual 2025-26 UIFSM Grant allocation adjustment | V50: =IF(D50="","",$H$7) -> 202512
B51: 7 | F51: =IF(LEN(H51)>5,LEFT(H51,5),"") ->  | M51: =IF(TRIM(L51)="","","R") ->  | O51: =IF(TRIM(L51)="","","GL") ->  | U51: ='SD Control Sheet'!$E$6&"#"&'SD Accrual Detail'!R51 -> Sundry Debtor for Please select from the list#
B52: 8 | M52: =IF(TRIM(L52)="","","R") ->  | O52: =IF(TRIM(L52)="","","GL") ->  | U52: ='SD Control Sheet'!$E$6&"#"&'SD Accrual Detail'!R52 -> Sundry Debtor for Please select from the list#
B53: 9 | U53: ='SD Control Sheet'!$E$6&"#"&'SD Accrual Detail'!R53 -> Sundry Debtor for Please select from the list#
B54: 10 | U54: ='SD Control Sheet'!$E$6&"#"&'SD Accrual Detail'!R54 -> Sundry Debtor for Please select from the list#
B55: 11 | U55: ='SD Control Sheet'!$E$6&"#"&'SD Accrual Detail'!R55 -> Sundry Debtor for Please select from the list#
B56: 12 | U56: ='SD Control Sheet'!$E$6&"#"&'SD Accrual Detail'!R56 -> Sundry Debtor for Please select from the list#
B57: 13 | U57: ='SD Control Sheet'!$E$6&"#"&'SD Accrual Detail'!R57 -> Sundry Debtor for Please select from the list#
B58: 14 | U58: ='SD Control Sheet'!$E$6&"#"&'SD Accrual Detail'!R58 -> Sundry Debtor for Please select from the list#
B59: 15 | U59: ='SD Control Sheet'!$E$6&"#"&'SD Accrual Detail'!R59 -> Sundry Debtor for Please select from the list#
B60: 16 | U60: ='SD Control Sheet'!$E$6&"#"&'SD Accrual Detail'!R60 -> Sundry Debtor for Please select from the list#
B61: 17 | U61: ='SD Control Sheet'!$E$6&"#"&'SD Accrual Detail'!R61 -> Sundry Debtor for Please select from the list#
B62: 18 | U62: ='SD Control Sheet'!$E$6&"#"&'SD Accrual Detail'!R62 -> Sundry Debtor for Please select from the list#
B63: 19 | U63: ='SD Control Sheet'!$E$6&"#"&'SD Accrual Detail'!R63 -> Sundry Debtor for Please select from the list#
B64: 20 | U64: ='SD Control Sheet'!$E$6&"#"&'SD Accrual Detail'!R64 -> Sundry Debtor for Please select from the list#
B65: 21 | U65: ='SD Control Sheet'!$E$6&"#"&'SD Accrual Detail'!R65 -> Sundry Debtor for Please select from the list#
B66: 22 | U66: ='SD Control Sheet'!$E$6&"#"&'SD Accrual Detail'!R66 -> Sundry Debtor for Please select from the list#
B67: 23 | U67: ='SD Control Sheet'!$E$6&"#"&'SD Accrual Detail'!R67 -> Sundry Debtor for Please select from the list#
B68: 24 | U68: ='SD Control Sheet'!$E$6&"#"&'SD Accrual Detail'!R68 -> Sundry Debtor for Please select from the list#
B69: 25 | U69: ='SD Control Sheet'!$E$6&"#"&'SD Accrual Detail'!R69 -> Sundry Debtor for Please select from the list#
B70: 26 | U70: ='SD Control Sheet'!$E$6&"#"&'SD Accrual Detail'!R70 -> Sundry Debtor for Please select from the list#
B71: 27 | U71: ='SD Control Sheet'!$E$6&"#"&'SD Accrual Detail'!R71 -> Sundry Debtor for Please select from the list#
B72: 28 | U72: ='SD Control Sheet'!$E$6&"#"&'SD Accrual Detail'!R72 -> Sundry Debtor for Please select from the list#
B73: 29 | U73: ='SD Control Sheet'!$E$6&"#"&'SD Accrual Detail'!R73 -> Sundry Debtor for Please select from the list#
B74: 30 | U74: ='SD Control Sheet'!$E$6&"#"&'SD Accrual Detail'!R74 -> Sundry Debtor for Please select from the list#
B75: 31 | U75: ='SD Control Sheet'!$E$6&"#"&'SD Accrual Detail'!R75 -> Sundry Debtor for Please select from the list#
B76: 32 | U76: ='SD Control Sheet'!$E$6&"#"&'SD Accrual Detail'!R76 -> Sundry Debtor for Please select from the list#
B77: 33 | U77: ='SD Control Sheet'!$E$6&"#"&'SD Accrual Detail'!R77 -> Sundry Debtor for Please select from the list#
B78: 34 | U78: ='SD Control Sheet'!$E$6&"#"&'SD Accrual Detail'!R78 -> Sundry Debtor for Please select from the list#
B79: 35 | U79: ='SD Control Sheet'!$E$6&"#"&'SD Accrual Detail'!R79 -> Sundry Debtor for Please select from the list#
B80: 36 | U80: ='SD Control Sheet'!$E$6&"#"&'SD Accrual Detail'!R80 -> Sundry Debtor for Please select from the list#
B81: 37 | U81: ='SD Control Sheet'!$E$6&"#"&'SD Accrual Detail'!R81 -> Sundry Debtor for Please select from the list#
B82: 38 | U82: ='SD Control Sheet'!$E$6&"#"&'SD Accrual Detail'!R82 -> Sundry Debtor for Please select from the list#
B83: 39 | U83: ='SD Control Sheet'!$E$6&"#"&'SD Accrual Detail'!R83 -> Sundry Debtor for Please select from the list#
B84: 40 | U84: ='SD Control Sheet'!$E$6&"#"&'SD Accrual Detail'!R84 -> Sundry Debtor for Please select from the list#
B85: 41 | U85: ='SD Control Sheet'!$E$6&"#"&'SD Accrual Detail'!R85 -> Sundry Debtor for Please select from the list#
B86: 42 | U86: ='SD Control Sheet'!$E$6&"#"&'SD Accrual Detail'!R86 -> Sundry Debtor for Please select from the list#
B87: 43 | U87: ='SD Control Sheet'!$E$6&"#"&'SD Accrual Detail'!R87 -> Sundry Debtor for Please select from the list#
B88: 44 | U88: ='SD Control Sheet'!$E$6&"#"&'SD Accrual Detail'!R88 -> Sundry Debtor for Please select from the list#
B89: 45 | U89: ='SD Control Sheet'!$E$6&"#"&'SD Accrual Detail'!R89 -> Sundry Debtor for Please select from the list#
B90: 46 | U90: ='SD Control Sheet'!$E$6&"#"&'SD Accrual Detail'!R90 -> Sundry Debtor for Please select from the list#
B91: 47 | U91: ='SD Control Sheet'!$E$6&"#"&'SD Accrual Detail'!R91 -> Sundry Debtor for Please select from the list#
B92: 48 | U92: ='SD Control Sheet'!$E$6&"#"&'SD Accrual Detail'!R92 -> Sundry Debtor for Please select from the list#
B93: 49 | U93: ='SD Control Sheet'!$E$6&"#"&'SD Accrual Detail'!R93 -> Sundry Debtor for Please select from the list#
B94: 50 | U94: ='SD Control Sheet'!$E$6&"#"&'SD Accrual Detail'!R94 -> Sundry Debtor for Please select from the list#
B95: 51 | U95: ='SD Control Sheet'!$E$6&"#"&'SD Accrual Detail'!R95 -> Sundry Debtor for Please select from the list#
B96: 52 | U96: ='SD Control Sheet'!$E$6&"#"&'SD Accrual Detail'!R96 -> Sundry Debtor for Please select from the list#
B97: 53 | U97: ='SD Control Sheet'!$E$6&"#"&'SD Accrual Detail'!R97 -> Sundry Debtor for Please select from the list#
B98: 54 | U98: ='SD Control Sheet'!$E$6&"#"&'SD Accrual Detail'!R98 -> Sundry Debtor for Please select from the list#
B99: 55 | U99: ='SD Control Sheet'!$E$6&"#"&'SD Accrual Detail'!R99 -> Sundry Debtor for Please select from the list#
B100: 56 | U100: ='SD Control Sheet'!$E$6&"#"&'SD Accrual Detail'!R100 -> Sundry Debtor for Please select from the list#
B101: 57 | U101: ='SD Control Sheet'!$E$6&"#"&'SD Accrual Detail'!R101 -> Sundry Debtor for Please select from the list#
B102: 58 | U102: ='SD Control Sheet'!$E$6&"#"&'SD Accrual Detail'!R102 -> Sundry Debtor for Please select from the list#
B103: 59 | U103: ='SD Control Sheet'!$E$6&"#"&'SD Accrual Detail'!R103 -> Sundry Debtor for Please select from the list#
B104: 60 | U104: ='SD Control Sheet'!$E$6&"#"&'SD Accrual Detail'!R104 -> Sundry Debtor for Please select from the list#
B105: 61 | U105: ='SD Control Sheet'!$E$6&"#"&'SD Accrual Detail'!R105 -> Sundry Debtor for Please select from the list#
B106: 62 | U106: ='SD Control Sheet'!$E$6&"#"&'SD Accrual Detail'!R106 -> Sundry Debtor for Please select from the list#
B107: 63 | U107: ='SD Control Sheet'!$E$6&"#"&'SD Accrual Detail'!R107 -> Sundry Debtor for Please select from the list#
B108: 64 | U108: ='SD Control Sheet'!$E$6&"#"&'SD Accrual Detail'!R108 -> Sundry Debtor for Please select from the list#
B109: 65 | U109: ='SD Control Sheet'!$E$6&"#"&'SD Accrual Detail'!R109 -> Sundry Debtor for Please select from the list#
B110: 66 | U110: ='SD Control Sheet'!$E$6&"#"&'SD Accrual Detail'!R110 -> Sundry Debtor for Please select from the list#
B111: =B110+1 -> 67 | U111: ='SD Control Sheet'!$E$6&"#"&'SD Accrual Detail'!R111 -> Sundry Debtor for Please select from the list#
B112: 68 | U112: ='SD Control Sheet'!$E$6&"#"&'SD Accrual Detail'!R112 -> Sundry Debtor for Please select from the list#
B113: 69 | U113: ='SD Control Sheet'!$E$6&"#"&'SD Accrual Detail'!R113 -> Sundry Debtor for Please select from the list#
A114: =IF(TRIM(D114)="","","update_data,visible") ->  | B114: 70 | Q114: =IF(P114="","",ROUND(P114,2)) ->  | U114: ='SD Control Sheet'!$E$6&"#"&'SD Accrual Detail'!R114 -> Sundry Debtor for Please select from the list# | V114: =IF(D114="","",$H$7) -> 
B115: 71 | F115: =IF(LEN(H115)>5,LEFT(H115,5),"") ->  | U115: ='SD Control Sheet'!$E$6&"#"&'SD Accrual Detail'!R115 -> Sundry Debtor for Please select from the list#
B116: 72 | M116: =IF(TRIM(L116)="","","R") ->  | O116: =IF(TRIM(L116)="","","GL") ->  | U116: ='SD Control Sheet'!$E$6&"#"&'SD Accrual Detail'!R116 -> Sundry Debtor for Please select from the list#
B117: 73 | U117: ='SD Control Sheet'!$E$6&"#"&'SD Accrual Detail'!R117 -> Sundry Debtor for Please select from the list#
B118: 74 | U118: ='SD Control Sheet'!$E$6&"#"&'SD Accrual Detail'!R118 -> Sundry Debtor for Please select from the list#
B119: 75 | U119: ='SD Control Sheet'!$E$6&"#"&'SD Accrual Detail'!R119 -> Sundry Debtor for Please select from the list#
B120: 76 | U120: ='SD Control Sheet'!$E$6&"#"&'SD Accrual Detail'!R120 -> Sundry Debtor for Please select from the list#
B121: 77 | U121: ='SD Control Sheet'!$E$6&"#"&'SD Accrual Detail'!R121 -> Sundry Debtor for Please select from the list#
B122: 78 | U122: ='SD Control Sheet'!$E$6&"#"&'SD Accrual Detail'!R122 -> Sundry Debtor for Please select from the list#
B123: 79 | U123: ='SD Control Sheet'!$E$6&"#"&'SD Accrual Detail'!R123 -> Sundry Debtor for Please select from the list#
B124: 80 | U124: ='SD Control Sheet'!$E$6&"#"&'SD Accrual Detail'!R124 -> Sundry Debtor for Please select from the list#
B125: 81 | U125: ='SD Control Sheet'!$E$6&"#"&'SD Accrual Detail'!R125 -> Sundry Debtor for Please select from the list#
B126: 82 | U126: ='SD Control Sheet'!$E$6&"#"&'SD Accrual Detail'!R126 -> Sundry Debtor for Please select from the list#
B127: 83 | U127: ='SD Control Sheet'!$E$6&"#"&'SD Accrual Detail'!R127 -> Sundry Debtor for Please select from the list#
B128: 84 | U128: ='SD Control Sheet'!$E$6&"#"&'SD Accrual Detail'!R128 -> Sundry Debtor for Please select from the list#
B129: 85 | U129: ='SD Control Sheet'!$E$6&"#"&'SD Accrual Detail'!R129 -> Sundry Debtor for Please select from the list#
B130: 86 | U130: ='SD Control Sheet'!$E$6&"#"&'SD Accrual Detail'!R130 -> Sundry Debtor for Please select from the list#
B131: 87 | U131: ='SD Control Sheet'!$E$6&"#"&'SD Accrual Detail'!R131 -> Sundry Debtor for Please select from the list#
B132: 88 | U132: ='SD Control Sheet'!$E$6&"#"&'SD Accrual Detail'!R132 -> Sundry Debtor for Please select from the list#
B133: 89 | U133: ='SD Control Sheet'!$E$6&"#"&'SD Accrual Detail'!R133 -> Sundry Debtor for Please select from the list#
B134: 90 | U134: ='SD Control Sheet'!$E$6&"#"&'SD Accrual Detail'!R134 -> Sundry Debtor for Please select from the list#
B135: 91 | U135: ='SD Control Sheet'!$E$6&"#"&'SD Accrual Detail'!R135 -> Sundry Debtor for Please select from the list#
B136: 92 | U136: ='SD Control Sheet'!$E$6&"#"&'SD Accrual Detail'!R136 -> Sundry Debtor for Please select from the list#
B137: 93 | U137: ='SD Control Sheet'!$E$6&"#"&'SD Accrual Detail'!R137 -> Sundry Debtor for Please select from the list#
B138: 94 | U138: ='SD Control Sheet'!$E$6&"#"&'SD Accrual Detail'!R138 -> Sundry Debtor for Please select from the list#
B139: 95 | U139: ='SD Control Sheet'!$E$6&"#"&'SD Accrual Detail'!R139 -> Sundry Debtor for Please select from the list#
B140: 96 | U140: ='SD Control Sheet'!$E$6&"#"&'SD Accrual Detail'!R140 -> Sundry Debtor for Please select from the list#
B141: 97 | U141: ='SD Control Sheet'!$E$6&"#"&'SD Accrual Detail'!R141 -> Sundry Debtor for Please select from the list#
B142: 98 | U142: ='SD Control Sheet'!$E$6&"#"&'SD Accrual Detail'!R142 -> Sundry Debtor for Please select from the list#
B143: 99 | U143: ='SD Control Sheet'!$E$6&"#"&'SD Accrual Detail'!R143 -> Sundry Debtor for Please select from the list#
B144: 100 | U144: ='SD Control Sheet'!$E$6&"#"&'SD Accrual Detail'!R144 -> Sundry Debtor for Please select from the list#
B145: 101 | U145: ='SD Control Sheet'!$E$6&"#"&'SD Accrual Detail'!R145 -> Sundry Debtor for Please select from the list#
B146: 102 | U146: ='SD Control Sheet'!$E$6&"#"&'SD Accrual Detail'!R146 -> Sundry Debtor for Please select from the list#
B147: 103 | U147: ='SD Control Sheet'!$E$6&"#"&'SD Accrual Detail'!R147 -> Sundry Debtor for Please select from the list#
B148: 104 | U148: ='SD Control Sheet'!$E$6&"#"&'SD Accrual Detail'!R148 -> Sundry Debtor for Please select from the list#
B149: 105 | U149: ='SD Control Sheet'!$E$6&"#"&'SD Accrual Detail'!R149 -> Sundry Debtor for Please select from the list#
B150: 106 | U150: ='SD Control Sheet'!$E$6&"#"&'SD Accrual Detail'!R150 -> Sundry Debtor for Please select from the list#
B151: 107 | U151: ='SD Control Sheet'!$E$6&"#"&'SD Accrual Detail'!R151 -> Sundry Debtor for Please select from the list#
B152: 108 | U152: ='SD Control Sheet'!$E$6&"#"&'SD Accrual Detail'!R152 -> Sundry Debtor for Please select from the list#
B153: 109 | U153: ='SD Control Sheet'!$E$6&"#"&'SD Accrual Detail'!R153 -> Sundry Debtor for Please select from the list#
B154: 110 | U154: ='SD Control Sheet'!$E$6&"#"&'SD Accrual Detail'!R154 -> Sundry Debtor for Please select from the list#
B155: 111 | U155: ='SD Control Sheet'!$E$6&"#"&'SD Accrual Detail'!R155 -> Sundry Debtor for Please select from the list#
B156: 112 | U156: ='SD Control Sheet'!$E$6&"#"&'SD Accrual Detail'!R156 -> Sundry Debtor for Please select from the list#
B157: 113 | U157: ='SD Control Sheet'!$E$6&"#"&'SD Accrual Detail'!R157 -> Sundry Debtor for Please select from the list#
B158: 114 | U158: ='SD Control Sheet'!$E$6&"#"&'SD Accrual Detail'!R158 -> Sundry Debtor for Please select from the list#
B159: 115 | U159: ='SD Control Sheet'!$E$6&"#"&'SD Accrual Detail'!R159 -> Sundry Debtor for Please select from the list#
B160: 116 | U160: ='SD Control Sheet'!$E$6&"#"&'SD Accrual Detail'!R160 -> Sundry Debtor for Please select from the list#
B161: 117 | U161: ='SD Control Sheet'!$E$6&"#"&'SD Accrual Detail'!R161 -> Sundry Debtor for Please select from the list#
B162: 118 | U162: ='SD Control Sheet'!$E$6&"#"&'SD Accrual Detail'!R162 -> Sundry Debtor for Please select from the list#
B163: 119 | U163: ='SD Control Sheet'!$E$6&"#"&'SD Accrual Detail'!R163 -> Sundry Debtor for Please select from the list#
B164: 120 | U164: ='SD Control Sheet'!$E$6&"#"&'SD Accrual Detail'!R164 -> Sundry Debtor for Please select from the list#
B165: 121 | U165: ='SD Control Sheet'!$E$6&"#"&'SD Accrual Detail'!R165 -> Sundry Debtor for Please select from the list#
B166: 122 | U166: ='SD Control Sheet'!$E$6&"#"&'SD Accrual Detail'!R166 -> Sundry Debtor for Please select from the list#
B167: 123 | U167: ='SD Control Sheet'!$E$6&"#"&'SD Accrual Detail'!R167 -> Sundry Debtor for Please select from the list#
B168: 124 | U168: ='SD Control Sheet'!$E$6&"#"&'SD Accrual Detail'!R168 -> Sundry Debtor for Please select from the list#
B169: 125 | U169: ='SD Control Sheet'!$E$6&"#"&'SD Accrual Detail'!R169 -> Sundry Debtor for Please select from the list#
B170: 126 | U170: ='SD Control Sheet'!$E$6&"#"&'SD Accrual Detail'!R170 -> Sundry Debtor for Please select from the list#
B171: 127 | U171: ='SD Control Sheet'!$E$6&"#"&'SD Accrual Detail'!R171 -> Sundry Debtor for Please select from the list#
B172: 128 | U172: ='SD Control Sheet'!$E$6&"#"&'SD Accrual Detail'!R172 -> Sundry Debtor for Please select from the list#
B173: 129 | U173: ='SD Control Sheet'!$E$6&"#"&'SD Accrual Detail'!R173 -> Sundry Debtor for Please select from the list#
B174: 130 | U174: ='SD Control Sheet'!$E$6&"#"&'SD Accrual Detail'!R174 -> Sundry Debtor for Please select from the list#
B175: =B174+1 -> 131 | U175: ='SD Control Sheet'!$E$6&"#"&'SD Accrual Detail'!R175 -> Sundry Debtor for Please select from the list#
B176: 132 | U176: ='SD Control Sheet'!$E$6&"#"&'SD Accrual Detail'!R176 -> Sundry Debtor for Please select from the list#
B177: 133 | U177: ='SD Control Sheet'!$E$6&"#"&'SD Accrual Detail'!R177 -> Sundry Debtor for Please select from the list#
A178: =IF(TRIM(D178)="","","update_data,visible") ->  | B178: 134 | Q178: =IF(P178="","",ROUND(P178,2)) ->  | U178: ='SD Control Sheet'!$E$6&"#"&'SD Accrual Detail'!R178 -> Sundry Debtor for Please select from the list# | V178: =IF(D178="","",$H$7) -> 
B179: 135 | F179: =IF(LEN(H179)>5,LEFT(H179,5),"") ->  | U179: ='SD Control Sheet'!$E$6&"#"&'SD Accrual Detail'!R179 -> Sundry Debtor for Please select from the list#
B180: 136 | M180: =IF(TRIM(L180)="","","R") ->  | O180: =IF(TRIM(L180)="","","GL") ->  | U180: ='SD Control Sheet'!$E$6&"#"&'SD Accrual Detail'!R180 -> Sundry Debtor for Please select from the list#
B181: 137 | U181: ='SD Control Sheet'!$E$6&"#"&'SD Accrual Detail'!R181 -> Sundry Debtor for Please select from the list#
B182: 138 | U182: ='SD Control Sheet'!$E$6&"#"&'SD Accrual Detail'!R182 -> Sundry Debtor for Please select from the list#
B183: 139 | U183: ='SD Control Sheet'!$E$6&"#"&'SD Accrual Detail'!R183 -> Sundry Debtor for Please select from the list#
B184: 140 | U184: ='SD Control Sheet'!$E$6&"#"&'SD Accrual Detail'!R184 -> Sundry Debtor for Please select from the list#
B185: 141 | U185: ='SD Control Sheet'!$E$6&"#"&'SD Accrual Detail'!R185 -> Sundry Debtor for Please select from the list#
B186: 142 | U186: ='SD Control Sheet'!$E$6&"#"&'SD Accrual Detail'!R186 -> Sundry Debtor for Please select from the list#
B187: 143 | U187: ='SD Control Sheet'!$E$6&"#"&'SD Accrual Detail'!R187 -> Sundry Debtor for Please select from the list#
B188: 144 | U188: ='SD Control Sheet'!$E$6&"#"&'SD Accrual Detail'!R188 -> Sundry Debtor for Please select from the list#
B189: 145 | U189: ='SD Control Sheet'!$E$6&"#"&'SD Accrual Detail'!R189 -> Sundry Debtor for Please select from the list#
B190: 146 | U190: ='SD Control Sheet'!$E$6&"#"&'SD Accrual Detail'!R190 -> Sundry Debtor for Please select from the list#
B191: 147 | U191: ='SD Control Sheet'!$E$6&"#"&'SD Accrual Detail'!R191 -> Sundry Debtor for Please select from the list#
B192: 148 | U192: ='SD Control Sheet'!$E$6&"#"&'SD Accrual Detail'!R192 -> Sundry Debtor for Please select from the list#
B193: 149 | U193: ='SD Control Sheet'!$E$6&"#"&'SD Accrual Detail'!R193 -> Sundry Debtor for Please select from the list#
B194: 150 | U194: ='SD Control Sheet'!$E$6&"#"&'SD Accrual Detail'!R194 -> Sundry Debtor for Please select from the list#
B195: 151 | U195: ='SD Control Sheet'!$E$6&"#"&'SD Accrual Detail'!R195 -> Sundry Debtor for Please select from the list#
B196: 152 | U196: ='SD Control Sheet'!$E$6&"#"&'SD Accrual Detail'!R196 -> Sundry Debtor for Please select from the list#
B197: 153 | U197: ='SD Control Sheet'!$E$6&"#"&'SD Accrual Detail'!R197 -> Sundry Debtor for Please select from the list#
B198: 154 | U198: ='SD Control Sheet'!$E$6&"#"&'SD Accrual Detail'!R198 -> Sundry Debtor for Please select from the list#
B199: 155 | U199: ='SD Control Sheet'!$E$6&"#"&'SD Accrual Detail'!R199 -> Sundry Debtor for Please select from the list#
B200: 156 | U200: ='SD Control Sheet'!$E$6&"#"&'SD Accrual Detail'!R200 -> Sundry Debtor for Please select from the list#
B201: 157 | U201: ='SD Control Sheet'!$E$6&"#"&'SD Accrual Detail'!R201 -> Sundry Debtor for Please select from the list#
B202: 158 | U202: ='SD Control Sheet'!$E$6&"#"&'SD Accrual Detail'!R202 -> Sundry Debtor for Please select from the list#
B203: 159 | U203: ='SD Control Sheet'!$E$6&"#"&'SD Accrual Detail'!R203 -> Sundry Debtor for Please select from the list#
B204: 160 | U204: ='SD Control Sheet'!$E$6&"#"&'SD Accrual Detail'!R204 -> Sundry Debtor for Please select from the list#
B205: 161 | U205: ='SD Control Sheet'!$E$6&"#"&'SD Accrual Detail'!R205 -> Sundry Debtor for Please select from the list#
B206: 162 | U206: ='SD Control Sheet'!$E$6&"#"&'SD Accrual Detail'!R206 -> Sundry Debtor for Please select from the list#
B207: 163 | U207: ='SD Control Sheet'!$E$6&"#"&'SD Accrual Detail'!R207 -> Sundry Debtor for Please select from the list#
B208: 164 | U208: ='SD Control Sheet'!$E$6&"#"&'SD Accrual Detail'!R208 -> Sundry Debtor for Please select from the list#
B209: 165 | U209: ='SD Control Sheet'!$E$6&"#"&'SD Accrual Detail'!R209 -> Sundry Debtor for Please select from the list#
B210: 166 | U210: ='SD Control Sheet'!$E$6&"#"&'SD Accrual Detail'!R210 -> Sundry Debtor for Please select from the list#
B211: 167 | U211: ='SD Control Sheet'!$E$6&"#"&'SD Accrual Detail'!R211 -> Sundry Debtor for Please select from the list#
... 843 more rows

Sheet Tables (2) (hidden)
B2: Month | C2: Period | E2: Description | F2: Account | G2: Description | H2: CostC | I2: Description | J2: Analysis4 | K2: Description | L2: Analysis3 | M2: Description | N2: Analysis2 | O2: Description | P2: Analysis | S2: Name | T2: ID | W2: Description | X2: Analysis3 | Y2: Description | Z2: Analysis3 | AA2: Len | AB2: Type | AC2: Description | AD2: Cat | AE2: Mnt | AF2: S
B3: Please select | C3: Please select | E3: Sundry Debtors (BZ345) | F3: BZ345 | G3: Corporate Balance Sheet (90000) | H3: 90000 | I3: Please select | K3: =IF(IF('SD Control Sheet'!$E$9="Receipts in Advance (BZ547)",'Tables (2)'!Y3,'Tables (2)'!W3)=0,"",IF('SD Control Sheet'!$E$9="Receipts in Advance (BZ547)",'Tables (2)'!Y3,'Tables (2)'!W3)) -> Capital (CAP01) | L3: CAP01 | M3: NNDR (Z7001) | N3: Z7001 | O3: Prior Year Adjustments (Z9001) | P3: Z9001 | S3: text att_name | T3: text attribute_id | W3: Capital (CAP01) | X3: CAP01 | Y3: Capital (CAP01) | Z3: CAP01 | AA3: text data_length | AB3: text data_type | AC3: text description | AD3: text dim_position | AE3: text maintenance | AF3: text status
B4: 2015-03-01 | C4: 201412 | G4: Farley Hill Balance Sheet (91111) | H4: 91111 | I4: Chief Executives Office (99999-101) | J4: 99999-101 | K4: =IF(IF('SD Control Sheet'!$E$9="Receipts in Advance (BZ547)",'Tables (2)'!Y4,'Tables (2)'!W4)=0,"",IF('SD Control Sheet'!$E$9="Receipts in Advance (BZ547)",'Tables (2)'!Y4,'Tables (2)'!W4)) -> Revenue (REV01) | L4: REV01 | M4: Summons Costs (Z7002) | N4: Z7002 | O4: PFI Finance Lease Payment (Z9002) | P4: Z9002 | T4: Position 0 | W4: Revenue (REV01) | X4: REV01 | Y4: Revenue (REV01) | Z4: REV01
B5: Adj-15 | C5: 201413 | G5: The Holt Balance Sheet (91204) | H5: 91204 | I5: Adult Services (99999-103) | J5: 99999-103 | K5: =IF(IF('SD Control Sheet'!$E$9="Receipts in Advance (BZ547)",'Tables (2)'!Y5,'Tables (2)'!W5)=0,"",IF('SD Control Sheet'!$E$9="Receipts in Advance (BZ547)",'Tables (2)'!Y5,'Tables (2)'!W5)) ->  | M5: Carters Hill Park (Z7101) | N5: Z7101 | O5: Payments in Year (Z9003) | P5: Z9003 | R5: ACCOUNT | S5: ACCOUNT | T5: A0 | Y5: Housing GF Accounts 2003/04 (Y9001) | Z5: Y9001 | AA5: 8 | AB5: A | AC5: Account | AD5: 0 | AE5: A | AF5: N
B6: 2015-04-01 | C6: 201501 | G6: Waingels Copse Balance Sheet (91209) | H6: 91209 | I6: Children's Services (99999-104) | J6: 99999-104 | K6: =IF(IF('SD Control Sheet'!$E$9="Receipts in Advance (BZ547)",'Tables (2)'!Y6,'Tables (2)'!W6)=0,"",IF('SD Control Sheet'!$E$9="Receipts in Advance (BZ547)",'Tables (2)'!Y6,'Tables (2)'!W6)) ->  | M6: Twyford Orchards (Z7102) | N6: Z7102 | O6: Interest Paid on Balances (Z9004) | P6: Z9004 | T6: Category 1 | Y6: Housing GF Accounts 2008/09 (Y9002) | Z6: Y9002
B7: 2015-05-01 | C7: 201502 | G7: HRA Balance Sheet (93500) | H7: 93500 | I7: Place & Growth (99999-105) | J7: 99999-105 | K7: =IF(IF('SD Control Sheet'!$E$9="Receipts in Advance (BZ547)",'Tables (2)'!Y7,'Tables (2)'!W7)=0,"",IF('SD Control Sheet'!$E$9="Receipts in Advance (BZ547)",'Tables (2)'!Y7,'Tables (2)'!W7)) ->  | M7: Grovelands (Z7201) | N7: Z7201 | O7: Precepts Paid (Z9005) | P7: Z9005 | R7: CAT1 | S7: COSTC | T7: C1 | Y7: Housing GF Accounts 2009/10 (Y9003) | Z7: Y9003 | AA7: 8 | AB7: A | AC7: Cost centre (CC) | AD7: 1 | AE7: M | AF7: N
B8: 2015-06-01 | C8: 201503 | I8: Resources & Assets (99999-106) | J8: 99999-106 | K8: =IF(IF('SD Control Sheet'!$E$9="Receipts in Advance (BZ547)",'Tables (2)'!Y8,'Tables (2)'!W8)=0,"",IF('SD Control Sheet'!$E$9="Receipts in Advance (BZ547)",'Tables (2)'!Y8,'Tables (2)'!W8)) ->  | M8: California Homeless (Z7202) | N8: Z7202 | O8: DR Transfer to Services (Z9006) | P8: Z9006 | T8: Category 2 | Y8: Housing GF Accounts 2010/11 (Y9004) | Z8: Y9004
B9: 2015-07-01 | C9: 201504 | I9: Housing General Fund (99999-110) | J9: 99999-110 | K9: =IF(IF('SD Control Sheet'!$E$9="Receipts in Advance (BZ547)",'Tables (2)'!Y9,'Tables (2)'!W9)=0,"",IF('SD Control Sheet'!$E$9="Receipts in Advance (BZ547)",'Tables (2)'!Y9,'Tables (2)'!W9)) ->  | M9: Oxford Road (Z7203) | N9: Z7203 | O9: Service Charge (Z9007) | P9: Z9007 | R9: CAT2 | S9: PROJECT | T9: B0 | Y9: Housing GF Accounts 2011/12 (Y9005) | Z9: Y9005 | AA9: 8 | AB9: A | AC9: Project code | AD9: 2 | AE9: M | AF9: N
B10: 2015-08-01 | C10: 201505 | I10: Housing Revenue Account (99999-111) | J10: 99999-111 | K10: =IF(IF('SD Control Sheet'!$E$9="Receipts in Advance (BZ547)",'Tables (2)'!Y10,'Tables (2)'!W10)=0,"",IF('SD Control Sheet'!$E$9="Receipts in Advance (BZ547)",'Tables (2)'!Y10,'Tables (2)'!W10)) ->  | M10: Shared Owernership (Z7204) | N10: Z7204 | O10: IAS 19 - Pension Costs (Z9008) | P10: Z9008 | T10: Category 3 | Y10: Housing GF Accounts 2012/13 (Y9006) | Z10: Y9006
B11: 2015-09-01 | C11: 201506 | I11: Children's Services - Schools Block (99999-112) | J11: 99999-112 | K11: =IF(IF('SD Control Sheet'!$E$9="Receipts in Advance (BZ547)",'Tables (2)'!Y11,'Tables (2)'!W11)=0,"",IF('SD Control Sheet'!$E$9="Receipts in Advance (BZ547)",'Tables (2)'!Y11,'Tables (2)'!W11)) ->  | M11: Parliamentary Elections (Z7301) | N11: Z7301 | O11: Fund Managers Fees (Z9009) | P11: Z9009 | R11: CAT3 | S11: RESNO | T11: C0 | Y11: Housing Revenue Accounts 2003/04 (Y9007) | Z11: Y9007 | AA11: 8 | AB11: A | AC11: Employee | AD11: 3 | AE11: A | AF11: N
B12: 2015-10-01 | C12: 201507 | I12: Community, Insight & Change (99999-116) | J12: 99999-116 | M12: European Elections (Z7302) | N12: Z7302 | O12: Contribution to Provision for Bad Debts (Z9010) | P12: Z9010 | R12: CAT3 | S12: ASSET | T12: F0 | AA12: 8 | AB12: A | AC12: Fixed Assets | AD12: 3 | AE12: A | AF12: N
B13: 2015-11-01 | C13: 201508 | I13: Service - General (99999-399) | J13: 99999-399 | M13: Local Elections (Z7303) | N13: Z7303 | O13: Treasury Consultancy Services (Z9011) | P13: Z9011 | T13: Category 4
B14: 2015-12-01 | C14: 201509 | I14: Wokingham Enterprise Limited (Z1000-100) | J14: Z1000-100 | M14: Police Commissioner Elections (Z7304) | N14: Z7304 | O14: PWLB Fees Payable (Z9012) | P14: Z9012 | R14: CAT4 | S14: ANALYSIS4 | T14: 40 | AA14: 5 | AB14: A | AC14: Analysis 4 | AD14: 4 | AE14: M | AF14: N
B15: 2016-01-01 | C15: 201510 | I15: Optalis (Z1001-100) | J15: Z1001-100 | O15: RD Direct Debit (Z9013) | P15: Z9013 | R15: CAT4 | S15: WORKORD | T15: BF | AA15: 12 | AB15: A | AC15: Work order code | AD15: 4 | AE15: A | AF15: N
B16: 2016-02-01 | C16: 201511 | I16: Wokingham Housing Ltd (Z1002-100) | J16: Z1002-100 | O16: Refunds (Z9014) | P16: Z9014 | T16: Category 5
B17: 2016-03-01 | C17: 201512 | O17: Receipts in Year (Z9015) | P17: Z9015 | R17: CAT5 | S17: ANALYSIS3 | T17: 50 | AA17: 5 | AB17: A | AC17: Analysis 3 | AD17: 5 | AE17: M | AF17: N
B18: Adj-16 | C18: 201513 | O18: Council Tax Income (Z9016) | P18: Z9016 | R18: CAT5 | S18: ACTIVITY | T18: B1 | AA18: 12 | AB18: A | AC18: Activity code | AD18: 5 | AE18: M | AF18: N
B19: 2016-04-01 | C19: 201601 | O19: CR Transfer to Services (Z9017) | P19: Z9017 | R19: CAT5 | S19: POSNO | T19: CG | AA19: 12 | AB19: A | AC19: Position code | AD19: 5 | AE19: A | AF19: N
B20: 2016-05-01 | C20: 201602 | O20: Collection Fund Surplus Timing Difference (Z9018) | P20: Z9018 | T20: Category 6
B21: 2016-06-01 | C21: 201603 | O21: Interest Generated from Balances (Z9019) | P21: Z9019 | R21: CAT6 | S21: ANALYSIS2 | T21: 61 | AA21: 5 | AB21: A | AC21: Analysis 2 | AD21: 6 | AE21: M | AF21: N
B22: 2016-07-01 | C22: 201604 | O22: Tax Deducted from Payments (Z9020) | P22: Z9020 | R22: CAT6 | S22: EXTFUNDING | T22: 62 | AA22: 5 | AB22: A | AC22: External Funding | AD22: 6 | AE22: M | AF22: N
B23: 2016-08-01 | C23: 201605 | O23: Repayment of Principal (Z9021) | P23: Z9021 | R23: CAT6 | S23: EMP_CAT | T23: 63 | AA23: 5 | AB23: A | AC23: Employee Category | AD23: 6 | AE23: M | AF23: N
B24: 2016-09-01 | C24: 201606 | O24: Repayment of Interest (Z9022) | P24: Z9022 | R24: CAT6 | S24: ICS_CODE | T24: 64 | AA24: 5 | AB24: A | AC24: Integrated CS Code | AD24: 6 | AE24: M | AF24: N
B25: 2016-10-01 | C25: 201607 | O25: Transfer to / from School Reserves (Z9023) | P25: Z9023 | R25: CAT6 | S25: WGA | T25: LG05 | AA25: 4 | AB25: A | AC25: WGA Reporting | AD25: 6 | AE25: M | AF25: N
B26: 2016-11-01 | C26: 201608 | O26: Transfer to Earmarked Reserves (Z9024) | P26: Z9024 | T26: Category 7
B27: 2016-12-01 | C27: 201609 | O27: Transfer to / from Usable Capital Receipts Reserve (Z9025) | P27: Z9025 | R27: CAT7 | S27: ANALYSIS | T27: 70 | AA27: 5 | AB27: A | AC27: Analysis | AD27: 7 | AE27: M | AF27: N
B28: 2017-01-01 | C28: 201610 | O28: Transfer to / from DSG Reserve (Z9026) | P28: Z9026
B29: 2017-02-01 | C29: 201611 | O29: Transfer to / from Pensions Reserve (Z9027) | P29: Z9027
B30: 2017-03-01 | C30: 201612 | O30: Transfer from Earmarked Reserve (Z9028) | P30: Z9028
B31: Adj-17 | C31: 201613 | O31: Transfer to / from Accumulated Absences Account (Z9029) | P31: Z9029
B32: 2017-04-01 | C32: 201701 | O32: Transfer to / from Capital Grants & Contributions Unapplied Reserve (Z9030) | P32: Z9030
B33: 2017-05-01 | C33: 201702 | O33: Transfer Capital Grants to Capital Adjustment Account (Z9031) | P33: Z9031
B34: 2017-06-01 | C34: 201703 | O34: Depreciation (Z9032) | P34: Z9032
B35: 2017-07-01 | C35: 201704 | O35: Deferred Charges (Z9033) | P35: Z9033
B36: 2017-08-01 | C36: 201705 | O36: Deferred Grants and Contributions (Z9034) | P36: Z9034
B37: 2017-09-01 | C37: 201706 | O37: Impairment (Z9035) | P37: Z9035
B38: 2017-10-01 | C38: 201707 | O38: Amortisation of Intangible Assets (Z9036) | P38: Z9036
B39: 2017-11-01 | C39: 201708 | O39: Disposal of Fixed Assets (Z9037) | P39: Z9037
B40: 2017-12-01 | C40: 201709 | O40: Revaluation of Fixed Assets (Z9038) | P40: Z9038
B41: 2018-01-01 | C41: 201710 | O41: MRP Adjustment (Z9039) | P41: Z9039
B42: 2018-02-01 | C42: 201711 | O42: Amortisation of Premiums and Discounts (Z9040) | P42: Z9040
B43: 2018-03-01 | C43: 201712 | O43: Financial Instruments Adjustment Account Transfer (Z9041) | P43: Z9041
B44: Adj-18 | C44: 201713 | O44: Impairment of Financial Instruments (Z9042) | P44: Z9042
B45: 2018-04-01 | C45: 201801 | O45: Transfer from Chargepayers (Z9043) | P45: Z9043
B46: 2018-05-01 | C46: 201802 | O46: Transfer to Collection Fund (Z9044) | P46: Z9044
B47: 2018-06-01 | C47: 201803 | O47: NNDR Income (Z9045) | P47: Z9045
B48: 2018-07-01 | C48: 201804 | O48: WBC Business Rates (Z9046) | P48: Z9046
B49: 2018-08-01 | C49: 201805 | O49: Cheque Payments (Z9047) | P49: Z9047
B50: 2018-09-01 | C50: 201806 | O50: MOD Grant in Lieu of Council Tax (Z9048) | P50: Z9048
B51: 2018-10-01 | C51: 201807 | O51: Direct Debit Payments (Z9049) | P51: Z9049
B52: 2018-11-01 | C52: 201808 | O52: Council Tax Benefit from GF (Z9050) | P52: Z9050
B53: 2018-12-01 | C53: 201809 | O53: Council Tax Refunds (Z9051) | P53: Z9051
B54: 2019-01-01 | C54: 201810 | O54: Receipts from NNDR Pool (Z9052) | P54: Z9052
B55: 2019-02-01 | C55: 201811 | O55: Contribution to NNDR Pool (Z9053) | P55: Z9053
B56: 2019-03-01 | C56: 201812 | O56: NNDR Refunds (Z9054) | P56: Z9054
B57: Adj-19 | C57: 201813 | O57: NNDR Collection Allowance Paid to GF (Z9055) | P57: Z9055
B58: 2019-04-01 | C58: 201901 | O58: NNDR Provision for Bad Debts (Z9056) | P58: Z9056
B59: 2019-05-01 | C59: 201902 | O59: NNDR Collection Costs (Z9057) | P59: Z9057
B60: 2019-06-01 | C60: 201903 | O60: Net Pay Control (Z9058) | P60: Z9058
B61: 2019-07-01 | C61: 201904 | O61: Deductions Control (Z9059) | P61: Z9059
B62: 2019-08-01 | C62: 201905
B63: 2019-09-01 | C63: 201906
B64: 2019-10-01 | C64: 201907
B65: 2019-11-01 | C65: 201908
B66: 2019-12-01 | C66: 201909
B67: 2020-01-01 | C67: 201910
B68: 2020-02-01 | C68: 201911
B69: 2020-03-01 | C69: 201912
B70: Adj-20 | C70: 201913
B71: 2020-04-01 | C71: 202001
B72: 2020-05-01 | C72: 202002
B73: 2020-06-01 | C73: 202003
B74: 2020-07-01 | C74: 202004
B75: 2020-08-01 | C75: 202005
B76: 2020-09-01 | C76: 202006
B77: 2020-10-01 | C77: 202007
B78: 2020-11-01 | C78: 202008
B79: 2020-12-01 | C79: 202009
B80: 2021-01-01 | C80: 202010
B81: 2021-02-01 | C81: 202011
B82: 2021-03-01 | C82: 202012
B83: Adj-21 | C83: 202013
B84: 2021-04-01 | C84: 202101
B85: 2021-05-01 | C85: 202102
B86: 2021-06-01 | C86: 202103
B87: 2021-07-01 | C87: 202104
B88: 2021-08-01 | C88: 202105
B89: 2021-09-01 | C89: 202106
B90: 2021-10-01 | C90: 202107
B91: 2021-11-01 | C91: 202108
B92: 2021-12-01 | C92: 202109
B93: 2022-01-01 | C93: 202110
B94: 2022-02-01 | C94: 202111
B95: 2022-03-01 | C95: 202112
B96: Adj-22 | C96: 202113
B97: 2022-04-01 | C97: 202201
B98: 2022-05-01 | C98: 202202
B99: 2022-06-01 | C99: 202203
B100: 2022-07-01 | C100: 202204
B101: 2022-08-01 | C101: 202205
B102: 2022-09-01 | C102: 202206
B103: 2022-10-01 | C103: 202207
B104: 2022-11-01 | C104: 202208
B105: 2022-12-01 | C105: 202209
B106: 2023-01-01 | C106: 202210
B107: 2023-02-01 | C107: 202211
B108: 2023-03-01 | C108: 202212
B109: Adj-23 | C109: 202213
B110: 2023-04-01 | C110: 202301
B111: 2023-05-01 | C111: 202302
B112: 2023-06-01 | C112: 202303
B113: 2023-07-01 | C113: 202304
B114: 2023-08-01 | C114: 202305
B115: 2023-09-01 | C115: 202306
B116: 2023-10-01 | C116: 202307
B117: 2023-11-01 | C117: 202308
B118: 2023-12-01 | C118: 202309
B119: 2024-01-01 | C119: 202310
B120: 2024-02-01 | C120: 202311
B121: 2024-03-01 | C121: 202312
B122: Adj-24 | C122: 202313
B123: OB-10 | C123: 201000

Sheet Dates_Pmts_Info (hidden)
A1: Current Year (Start Date) | B1: Current Year (End Date) | C1: Current FY Year | D1: Previous Year (Start Date) | E1: Previous Year (End Date) | F1: Previous FY Year | G1: Previous Year June/July payment | H1: Current Year June/July payment | I1: Deadline: | J1: End of Year Date: | K1: Start of Year Date: | L1: Accrual Period | M1: Reversing Period | O1: School Details
A2: 2025 | B2: 2026 | C2: 2025-26 | D2: 2024 | E2: 2025 | F2: 2024-25 | G2: 2.58 | H2: 2.61 | I2: FRIDAY, 20TH MARCH 2026 | J2: 2026-03-31 | K2: 1st April 2026 | L2: 202512 | M2: 202601 | O2: URN | P2: School Name | Q2: Cost Centre | R2: LAEst | S2: LA
P3: Please select from the list
O4: 109829 | P4: Farley Hill Primary School | Q4: 41111 | R4: 8722088 | S4: 872
A5: 2024-2025 funding guidance from DfE | G5: 2025-2026 funding guidance from DfE | O5: 109830 | P5: Lambs Lane Primary School | Q5: 41122 | R5: 8722089 | S5: 872
O6: 109836 | P6: Bearwood Primary School | Q6: 41103 | R6: 8722100 | S6: 872
O7: 109850 | P7: Aldryngton Primary School | Q7: 41101 | R7: 8722116 | S7: 872
O8: 109869 | P8: Walter Infant School | Q8: 41144 | R8: 8722137 | S8: 872
O9: 109876 | P9: Winnersh Primary School | Q9: 41151 | R9: 8722146 | S9: 872
O10: 109878 | P10: The Colleton Primary School | Q10: 41105 | R10: 8722149 | S10: 872
O11: 109924 | P11: Gorse Ride Infants' School | Q11: 41113 | R11: 8722232 | S11: 872
O12: 109927 | P12: Radstock Primary School | Q12: 41131 | R12: 8722235 | S12: 872
O13: 109988 | P13: Woodley CofE Primary School | Q13: 41152 | R13: 8723056 | S13: 872
O14: 109989 | P14: Robert Piggott CofE Infant School | Q14: 41133 | R14: 8723057 | S14: 872
O15: 110012 | P15: Finchampstead CofE VA Primary School | Q15: 41112 | R15: 8723315 | S15: 872
O16: 110041 | P16: St Dominic Savio Catholic Primary School | Q16: 41139 | R16: 8723368 | S16: 872
O17: 131192 | P17: Loddon Primary School | Q17: 41153 | R17: 8723371 | S17: 872
A21: Notes on this process:
A22: Change the dates above
A23: Final Allocations tab - should always reference the final funding allocation for the year before NOT the current Financial Year's provisional allocation.
